Cogmind - Beta 16.1 @@@ ROGUE MODE // 2026.02.21 @ 15:03:32 Player: C0-2MO Result: Escaped! Performance ------------- Evolutions (9) 4500 Regions Visited (40) 8000 Robots Destroyed (330) 1650 Value Destroyed (13409) 13409 Prototype IDs (139) 2780 Alien Tech Used (2) 400 Bonus (17773) 17773 TOTAL SCORE: 48512 Bonus ------- High Alert Combat Kills 865 Follower Combat Kills 2208 Hunted by Unchained 500 Destroyed Unchained 1000 Entered Garrisons 1000 Used RIF Installer 2500 Network Hubs Disabled 600 Aligned with FarCom 300 Met Data Miner 300 Met R17 at Cetus 500 Found Hidden Lab 3000 Met R17 at Research 2000 Win 3000 Cogmind --------- Core Integrity 1600/1600 Matter 283/300 Energy 278/280 System Corruption 0% Temperature Cool (4) Movement Flying (27) Location To Epsilon Eridani Parts ------- > --- POWER (2) -------- Light Quantum Reactor Light Quantum Reactor > --- PROPULSION (6) --- Field Propulsion Array Field Propulsion Array Diametric Drive Cooled Impulse Thruster > --- UTILITY (14) ----- Large Storage Unit Advanced Quantum Shading Machine Advanced Transmission Jammer Experimental Cloaking Device Experimental Propulsion Shielding Experimental Powered Armor Improved Hacking Suite Improved Hacking Suite Deep Network Scanner Ghost Barrier Relay Coupler [NC] (32) Relay Coupler [Swarmer] (38) Relay Coupler [Grunt] (15) Relay Coupler [Hunter] (21) > --- WEAPON (3) ------- Guided Remote Datajack Centrium Greatsword > --- INVENTORY (15) --- Improved Fusion Compressor Field Propulsion Array Diametric Drive Diametric Drive Improved Q-thruster Stasis Canceller Experimental Propulsion Shielding Graphene Brace Relay Coupler [Cutter] (26) Transdimensional Reconstructor Advanced Micro-nuke Launcher Peak State ------------ > --- POWER ------------ Light Quantum Reactor Light Quantum Reactor > --- PROPULSION ------- Field Propulsion Array Field Propulsion Array Diametric Drive Cooled Impulse Thruster > --- UTILITY ---------- Large Storage Unit Advanced Quantum Shading Machine Advanced Transmission Jammer Experimental Cloaking Device Experimental Propulsion Shielding Experimental Powered Armor Improved Hacking Suite Improved Hacking Suite Improved Hacking Suite Deep Network Scanner Ghost Barrier Relay Coupler [NC] Relay Coupler [Grunt] Relay Coupler [Hunter] > --- WEAPON ----------- Guided Remote Datajack Centrium Greatsword > --- INVENTORY -------- Improved Fusion Compressor Field Propulsion Array Diametric Drive Diametric Drive Improved Q-thruster Stasis Canceller Experimental Propulsion Shielding Graphene Brace Relay Coupler [Swarmer] Relay Coupler [Cutter] Transdimensional Reconstructor Advanced Micro-nuke Launcher [Rating: 185] Favorites ----------- Power Micro Antimatter Reactor Engine Heavy Ion Engine Power Core Micro Nuclear Core Reactor Micro Antimatter Reactor Propulsion Improved Cesium-ion Thruster Wheel Compact Wheel Hover Unit Gravmag System Flight Unit Improved Cesium-ion Thruster Utility Improved Hacking Suite Device Structural Scanner Storage Huge Storage Unit Processor Experimental Optical Array Hackware Improved Hacking Suite Protection Improved Utility Shielding Weapon Light EM Pulse Cannon Energy Gun Medium Laser Energy Cannon Light EM Pulse Cannon Ballistic Gun Autogun Ballistic Cannon Hardcell Cannon Launcher Heavy Rocket Launcher Special Weapon Guided Remote Datajack Impact Weapon Great Maul Slashing Weapon Centrium Greatsword Special Melee Weapon Improved Datajack Build | -11 -10 -10 -9 -9 -9 -8 -8 -8 -8 -8 -7 -7 -7 -7 -7 -7 -6 -6 -6 -6 -6 -6 -6 -6 -6 -5 -5 -5 -5 -4 -4 -4 -4 -4 -4 -3 -3 -2 -2 -1 ------- Run | Yrd Mat Min Mat Min Exi Min Mat Gar Mat Gar Fac Was Fac Low Low Dat Pro Fac Was Fac Ext Cet Arc Hub Gar Fac Upp Upp War Pro Fac Was Fac Arm Lab Res Gar Res Gar Acc Slots Evolved 18 | . . . 2 . . . 2 . . . 2 . . . . . . 2 . . . . . . . 2 . . . . 2 . . . . 2 . 2 . 2 Power 1 | . . . . . . . . . . . 1 . . . . . . . . . . . . . . . . . . . . . . . . . . . . . Propulsion 4 | . . . . . . . . . . . . . . . . . . 2 . . . . . . . 2 . . . . . . . . . . . . . . Utility 12 | . . . 1 . . . 2 . . . 1 . . . . . . . . . . . . . . . . . . . 2 . . . . 2 . 2 . 2 Weapon 1 | . . . 1 . . . . . . . . . . . . . . . . . . . . . . . . . . . . . . . . . . . . . Parts Attached 301 | 7 14 1 33 2 . . 13 8 10 11 8 2 20 1 . . 3 9 . 4 8 2 8 1 7 23 2 1 . 8 37 . 11 7 4 2 14 5 14 1 Power 32 | 1 . . 5 . . . . 1 . 1 1 . 3 . . . 2 . . . 2 . . . . 5 . . . 3 3 . . 2 . . . . 3 . Engine 14 | 1 . . 5 . . . . 1 . 1 . . 2 . . . 1 . . . 2 . . . . . . . . 1 . . . . . . . . . . Core 10 | . . . . . . . . . . . 1 . 1 . . . 1 . . . . . . . . 5 . . . 1 1 . . . . . . . . . Reactor 8 | . . . . . . . . . . . . . . . . . . . . . . . . . . . . . . 1 2 . . 2 . . . . 3 . Propulsion 66 | 2 7 . 6 . . . 2 4 1 1 2 . 3 . . . . 3 . . . . 2 . 3 8 1 . . 3 12 . 2 1 . 2 1 . . . Treads . | . . . . . . . . . . . . . . . . . . . . . . . . . . . . . . . . . . . . . . . . . Leg . | . . . . . . . . . . . . . . . . . . . . . . . . . . . . . . . . . . . . . . . . . Wheel 25 | 2 7 . 6 . . . 2 4 1 1 2 . . . . . . . . . . . . . . . . . . . . . . . . . . . . . Hover 5 | . . . . . . . . . . . . . . . . . . . . . . . 2 . . . . . . . 3 . . . . . . . . . Flight 36 | . . . . . . . . . . . . . 3 . . . . 3 . . . . . . 3 8 1 . . 3 9 . 2 1 . 2 1 . . . Utility 128 | 2 4 . 7 1 . . 6 2 5 8 3 . 11 . . . . 4 . 4 . 1 5 1 2 7 1 . . . 16 . 6 3 2 . 10 5 11 1 Device 52 | 1 2 . 4 1 . . 2 . 4 1 1 . 6 . . . . . . 3 . 1 2 1 2 . 1 . . . 8 . 4 . . . 4 2 2 . Storage 9 | 1 2 . . . . . . . . . . . . . . . . 1 . . . . . . . 2 . . . . . . 1 1 . . . . 1 . Processor 7 | . . . . . . . . . . . . . 1 . . . . 1 . . . . . . . 1 . . . . 4 . . . . . . . . . Hackware 41 | . . . 1 . . . . . . 4 1 . 4 . . . . 1 . 1 . . 3 . . 2 . . . . 3 . 1 2 1 . 6 2 8 1 Protection 19 | . . . 2 . . . 4 2 1 3 1 . . . . . . 1 . . . . . . . 2 . . . . 1 . . . 1 . . 1 . . Artifact . | . . . . . . . . . . . . . . . . . . . . . . . . . . . . . . . . . . . . . . . . . Weapon 75 | 2 3 1 15 1 . . 5 1 4 1 2 2 3 1 . . 1 2 . . 6 1 1 . 2 3 . 1 . 2 6 . 3 1 2 . 3 . . . Energy Gun 27 | 2 2 . 9 . . . 1 1 4 1 2 1 1 . . . . . . . . . . . 1 . . . . . . . . 1 1 . . . . . Energy Cannon 11 | . . . 5 . . . 2 . . . . 1 . . . . . . . . . . . . . 2 . . . . . . . . 1 . . . . . Ballistic Gun 5 | . . . . . . . . . . . . . . . . . . . . . 3 . . . 1 . . . . . . . . . . . 1 . . . Ballistic Cannon 1 | . . . . . . . . . . . . . . . . . . . . . . . . . . . . . . . . . 1 . . . . . . . Launcher 6 | . . 1 1 1 . . . . . . . . . . . . . 1 . . . . . . . . . . . 1 . . . . . . 1 . . . Special Weapon 4 | . . . . . . . . . . . . . . . . . . . . . . 1 . . . . . . . . 2 . . . . . 1 . . . Impact Weapon 1 | . . . . . . . . . . . . . . . . . . . . . . . . . . . . 1 . . . . . . . . . . . . Slashing Weapon 12 | . . . . . . . 2 . . . . . 1 1 . . 1 1 . . 3 . . . . . . . . 1 2 . . . . . . . . . Piercing Weapon . | . . . . . . . . . . . . . . . . . . . . . . . . . . . . . . . . . . . . . . . . . Special Melee Weapon 8 | . 1 . . . . . . . . . . . 1 . . . . . . . . . 1 . . 1 . . . . 2 . 2 . . . . . . . Unidentified Prototypes 34 | . . . 1 1 . . 1 . 1 . . . 3 . . . . . . . . . . . . 1 . . . . 11 . . 2 6 . 6 . 1 . Parts Lost 65 | . 2 . 6 . . . 7 3 . 8 . 4 . . . . . . . . 3 . 1 . 5 7 . 1 1 4 11 . 2 . . . . . . . Power 13 | . . . 2 . . . . 1 . 1 . 1 . . . . . . . . 2 . . . . 3 . . 1 . 2 . . . . . . . . . Propulsion 19 | . 1 . . . . . 1 1 . 2 . . . . . . . . . . . . 1 . 2 2 . 1 . 1 6 . 1 . . . . . . . Utility 13 | . . . 1 . . . 3 . . 2 . 1 . . . . . . . . . . . . 2 1 . . . 1 1 . 1 . . . . . . . Weapon 20 | . 1 . 3 . . . 3 1 . 3 . 2 . . . . . . . . 1 . . . 1 1 . . . 2 2 . . . . . . . . . Highest Loss Streak 11 | . 1 . 2 . . . 4 3 . 6 . 4 . . . . . . . . 2 . 1 . 4 4 . 1 1 3 11 . 1 . . . . . . . To Critical Strikes 2 | . . . . . . . . . . . . . . . . . . . . . . . . . . . . . . . 2 . . . . . . . . . Average Backups 12 | 1 11 22 24 25 24 25 22 23 24 21 24 23 4 5 5 5 5 4 5 4 4 4 5 4 4 7 8 9 9 9 6 5 5 5 9 12 13 13 13 11 Power . | . 1 2 1 2 2 2 2 1 1 . . . . 1 1 1 1 . . . . . . . . . . . . . . . . . 1 1 1 1 1 1 Propulsion 2 | . 1 6 6 5 5 5 5 4 3 . . . 1 2 2 2 2 . . . . . . . . . . . . . . . . . 1 2 3 3 4 4 Utility 4 | . 3 5 5 6 6 6 4 7 9 9 11 11 1 1 1 1 1 2 3 2 2 2 2 2 2 5 6 6 6 6 4 5 5 4 5 5 5 4 5 4 Weapon 4 | 1 3 8 10 11 10 10 10 9 9 10 12 11 1 1 1 1 1 1 2 1 1 1 1 1 1 1 2 3 3 2 . . . . . 1 1 2 1 1 Tool/Special . | . . . . . . . . . . . . . . . . . . . . . . . . . . . . . . . . . . . . . . . . . Unused Backups 54 | . 3 . 10 . 1 . . 1 5 1 1 9 5 . . . . 2 . . . . 1 . . 1 . . . . 2 . . . 1 3 . 1 . 7 Power 3 | . . . 1 . . . . . . . . . . . . . . . . . . . . . . . . . . . . . . . . 1 . . . 1 Propulsion 5 | . . . . . . . . . . . . . . . . . . . . . . . . . . . . . . . . . . . . 1 . . . 4 Utility 20 | . 1 . 3 . . . . 1 . 1 . 6 1 . . . . 2 . . . . 1 . . 1 . . . . . . . . . 1 . 1 . 1 Weapon 23 | . 2 . 6 . 1 . . . 5 . 1 3 3 . . . . . . . . . . . . . . . . . 2 . . . . . . . . . Tool/Special 3 | . . . . . . . . . . . . . 1 . . . . . . . . . . . . . . . . . . . . . 1 . . . . 1 Average Slot Usage (%) 89 | . 99 100 99 100 100 100 96 99 100 97 96 93 76 92 92 92 92 89 93 92 90 92 89 86 77 77 89 80 83 76 86 89 87 85 82 82 84 84 84 87 Engine 5 | . 14 14 10 11 11 11 9 8 9 9 7 7 5 15 15 15 15 6 6 6 1 . . . . . . . . . . . . . . . . . . . Core 1 | . . . . . . . . . . . 5 6 . . . . . 5 6 6 6 6 6 6 6 8 5 5 3 3 1 . . . . . . . . . Reactor 2 | . . . . . . . . . . . . . . . . . . . . . . . . . . . . . . . 7 10 10 10 10 8 9 8 8 8 Wheel 7 | . 27 28 22 22 22 22 18 17 18 17 15 14 . . . . . . . . . . . . . . . . . . . . . . . . . . . . Flight 13 | . . . . . . . . . . . . . 13 15 15 15 15 25 26 26 26 26 21 13 20 24 35 30 29 33 22 26 25 26 26 20 19 17 17 16 Device 12 | . 14 14 13 11 11 11 18 18 25 20 17 14 12 7 7 7 7 5 6 7 6 6 7 6 11 4 9 9 11 11 11 10 12 15 11 14 13 16 10 11 Storage 5 | . 14 14 11 11 11 11 9 9 9 9 7 6 . . . . . . . . . . . . . 3 5 5 5 5 1 . . 2 5 4 4 4 4 4 Hackware 15 | . . . . . . . . . . 2 3 7 21 30 30 30 30 23 26 26 26 26 28 33 21 22 17 17 17 15 18 21 25 22 24 23 22 26 30 32 Protection 5 | . . . 7 11 11 11 16 18 10 11 15 14 6 7 7 7 7 5 6 4 6 6 2 . . 1 1 1 . . 3 5 . . . 2 3 4 4 8 Energy Gun 5 | . 27 24 23 . . . 1 5 15 7 10 17 . . . . . . . . . . . . 1 . . . . . . . . . 3 . . . . . Energy Cannon 5 | . . . 8 29 33 33 22 16 10 14 8 3 . . . . . . . . . 3 3 . 2 1 1 1 2 . . . . . . . . . . . Slashing Weapon 3 | . . . . . . . . 4 . 3 3 . 4 7 7 7 7 5 6 6 6 6 6 6 6 4 5 . . . 4 5 5 5 2 3 4 3 4 4 Special Melee Weapon 2 | . . . . . . . . . . 1 . . 6 7 7 7 7 6 6 5 5 6 3 1 . 1 5 5 5 1 1 5 4 2 . 2 2 4 2 . Peak Build Rating 185 | 9 10 10 23 28 22 22 29 35 37 38 45 48 38 40 36 36 40 59 53 56 58 61 69 67 63 84 65 63 62 59 134 117 124 124 136 149 162 166 173 185 Average Rating 63 | 5 9 9 17 21 21 22 25 32 35 34 42 43 31 36 36 36 36 48 53 54 53 58 58 57 49 69 59 54 57 52 108 117 115 117 118 140 157 160 165 184 On Entrance 59 | . 9 9 10 21 21 22 22 29 35 35 37 44 13 36 36 36 36 36 53 53 55 58 54 55 55 44 61 57 55 52 53 117 117 124 115 128 149 157 163 167 Avg Prop Armor Cover (%) 9 | . . . . . . . . . . . . . . . . . . . . . . . 11 17 5 15 9 4 4 9 6 . . . . . . . . . Naked Turns . | . . . . . . . . . . . . . . . . . . . . . . . . . . . . . . . . . . . . . . . . . Heaviest Build 122 | 14 90 90 110 110 110 110 117 117 115 115 119 122 13 11 11 11 11 23 18 24 24 24 24 12 23 46 32 30 32 27 38 25 34 45 44 46 50 48 62 73 Greatest Support 73 | 20 26 20 32 32 32 32 32 32 20 20 24 24 12 12 12 12 12 24 24 24 24 24 24 12 18 42 33 33 28 33 48 38 44 44 44 47 48 48 73 73 Greatest Overweight (x) 7 | . 4 4 4 3 3 3 4 5 5 5 5 5 2 . . . . . . . . . 7 . 5 1 . 1 1 . 6 . . 1 . . 1 . 1 . Average Overweight (x) . | . 1 4 3 3 3 3 3 3 5 5 4 3 . . . . . . . . . . . . . . . . . . . . . . . . . . . . Largest Inventory Capacity 25 | 8 25 25 25 25 25 25 25 25 25 25 25 25 5 5 5 5 5 5 5 5 5 5 5 5 5 10 10 10 10 10 10 5 15 15 15 15 15 15 20 15 Average Capacity 14 | 7 15 25 25 25 25 25 25 25 25 25 25 23 5 5 5 5 5 5 5 5 5 5 5 5 5 8 10 10 10 10 6 5 5 10 15 15 15 15 15 15 Most Carried 25 | 3 22 23 25 25 25 25 25 25 25 25 25 25 5 5 5 5 5 5 5 5 5 5 5 5 5 10 9 10 10 10 10 5 5 8 14 15 15 15 15 14 Average Carried 13 | 1 11 22 24 25 24 24 22 23 24 21 24 23 4 5 5 5 5 4 5 4 4 4 5 4 4 7 8 9 9 9 6 5 5 6 11 13 14 14 14 12 Final Capacity 25 | 8 25 25 25 25 25 25 25 25 25 25 25 5 5 5 5 5 5 5 5 5 5 5 5 5 5 10 10 10 10 10 5 5 5 15 15 15 15 15 15 15 Final Carried 25 | 3 22 23 25 25 25 25 21 25 25 25 25 5 5 5 5 5 5 5 5 5 5 5 5 5 5 9 9 10 10 9 5 5 5 8 13 15 15 15 15 12 Class Distribution -------------------- 32% | Hacker-Sprinter 14% | Tank 12% | Wizard-Sprinter 10% | Mutant 4% | Hacker-Ninja 4% | Hacker-Mutant 4% | Scavenger-Skirmisher Dominant Class ---------------- Mutant | -10/Materials Mutant | -10/Mines Tank | -9/Materials Tank | -9/Mines Tank | -9/Exiles Skirmisher | -8/Mines Tank | -8/Materials Tank | -8/Garrison Scavenger-Skirmisher | -8/Materials Scavenger-Mutant | -8/Garrison Mutant | -7/Factory Tank | -7/Waste Hacker-Sprinter | -7/Factory Hacker-Sprinter | -7/Lower Caves Hacker-Sprinter | -7/Lower Caves Hacker-Sprinter | -7/Data Miner Hacker-Sprinter | -6/Proximity Caves Hacker-Sprinter | -6/Factory Hacker-Sprinter | -6/Waste Hacker-Sprinter | -6/Factory Hacker-Sprinter | -6/Extension Hacker-Sprinter | -6/Cetus Hacker-Mutant | -6/Archives Hacker-Mutant | -6/Hub_04(d) Hacker-Mutant | -6/Garrison Hacker-Sprinter | -5/Factory Hacker-Sprinter | -5/Upper Caves Hacker-Sprinter | -5/Upper Caves Hacker-Sprinter | -5/Warlord Hacker-Sprinter | -4/Proximity Caves Hacker-Ninja | -4/Factory Hacker-Ninja | -4/Waste Hacker-Sprinter | -4/Factory Hacker-Sprinter | -4/Armory Wizard-Sprinter | -4/Lab Wizard-Sprinter | -3/Research Wizard-Sprinter | -3/Garrison Wizard-Sprinter | -2/Research Wizard-Sprinter | -2/Garrison Commander-Sprinter | -1/Access Resources | -11 -10 -10 -9 -9 -9 -8 -8 -8 -8 -8 -7 -7 -7 -7 -7 -7 -6 -6 -6 -6 -6 -6 -6 -6 -6 -5 -5 -5 -5 -4 -4 -4 -4 -4 -4 -3 -3 -2 -2 -1 ----------- Run | Yrd Mat Min Mat Min Exi Min Mat Gar Mat Gar Fac Was Fac Low Low Dat Pro Fac Was Fac Ext Cet Arc Hub Gar Fac Upp Upp War Pro Fac Was Fac Arm Lab Res Gar Res Gar Acc Matter Collected 6855 | 270 185 7 559 61 . 38 267 184 214 306 . . 466 61 . . 43 178 . 196 316 60 110 20 255 499 148 65 1 172 494 . 149 213 . 170 540 62 513 33 Remotely . | . . . . . . . . . . . . . . . . . . . . . . . . . . . . . . . . . . . . . . . . . Salvage Created 13970 | 157 829 89 1987 85 . 197 1516 516 1443 572 . . 461 70 51 . . 275 . 319 487 357 634 128 365 974 . 129 . 268 557 . 242 36 . 416 407 . 370 33 Parts 658 | 11 49 8 122 24 . 7 64 31 64 31 . . 20 1 . . . 20 . 12 16 7 38 4 15 45 . . . 10 23 . 6 1 . 10 11 . 7 1 Haulers Intercepted 18 | . 2 . 5 . . . 2 . 3 . . . . . . . . . . . . . . . . 1 . . . . 3 . 1 . . 1 . . . . Recyclers Shooed 10 | . 2 . 3 . . . . . . . . . 1 . . . . . . 1 1 . . . . . . . . . . . 1 . . 1 . . . . Parts Field Recycled . | . . . . . . . . . . . . . . . . . . . . . . . . . . . . . . . . . . . . . . . . . Retrieved Matter . | . . . . . . . . . . . . . . . . . . . . . . . . . . . . . . . . . . . . . . . . . Parts Self-Destructed 5 | . . . . . . . . . . . . . . 1 . . . . . . . . . . . . 2 . . 2 . . . . . . . . . . Prevented 1 | . . . . . . . . . . . . . . . . . . . . . . . . . . . . 1 . . . . . . . . . . . . Parts Restored . | . . . . . . . . . . . . . . . . . . . . . . . . . . . . . . . . . . . . . . . . . Kills | -11 -10 -10 -9 -9 -9 -8 -8 -8 -8 -8 -7 -7 -7 -7 -7 -7 -6 -6 -6 -6 -6 -6 -6 -6 -6 -5 -5 -5 -5 -4 -4 -4 -4 -4 -4 -3 -3 -2 -2 -1 ------- Run | Yrd Mat Min Mat Min Exi Min Mat Gar Mat Gar Fac Was Fac Low Low Dat Pro Fac Was Fac Ext Cet Arc Hub Gar Fac Upp Upp War Pro Fac Was Fac Arm Lab Res Gar Res Gar Acc Combat Hostiles Destroyed 203 | . 8 5 40 8 . 4 22 14 23 13 . . . . . . . 4 . 4 8 5 4 . 10 17 . . . 4 3 . . . . . 5 . 2 . Melee 14 | . . . . . . . . 1 . . . . . . . . . 1 . 1 2 . . . . 1 . . . . 2 . . . . . 4 . 2 . Guns 46 | . 6 2 20 . . . . 2 12 4 . . . . . . . . . . . . . . . . . . . . . . . . . . . . . . Cannons 58 | . . . 5 1 . 2 14 5 6 5 . . . . . . . . . . . 3 4 . 7 3 . . . 2 1 . . . . . . . . . AOE 72 | . . 3 15 7 . 2 6 5 2 3 . . . . . . . 3 . 3 5 . . . 3 13 . . . 2 . . . . . . . . . . Classes Destroyed 17 | 2 6 1 3 . . 1 . . . . . . . . . . . 1 . . 1 . . . 1 . . . . . 1 . . . . . . . . . Worker 18 | . 7 . 4 . . . 1 . 3 . . . 1 . . . . . . 1 . . . . . . . . . . 1 . . . . . . . . . Builder 13 | . 1 . 1 1 . . 3 . 1 . . . 1 . . . . 1 . 1 1 . . . . . . . . . 2 . . . . . . . . . Tunneler 10 | 5 1 . . 1 . . . . 1 . . . . . . . . . . . . . . . . 1 . . . . 1 . . . . . . . . . Hauler 18 | . 2 . 5 . . . 2 . 3 . . . . . . . . . . . . . . . . 1 . . . . 3 . 1 . . 1 . . . . Recycler 25 | 1 1 . 2 . . . 3 . 1 . . . 5 . . . . 1 . 1 2 . . 1 . 4 . . . . . . 1 . . 2 . . . . Mechanic 3 | . . . 1 . . . 1 . 1 . . . . . . . . . . . . . . . . . . . . . . . . . . . . . . . Operator 19 | . 2 . 1 . . . 1 . . . . . 2 . . . . 1 . . . . 9 . . 2 . . . . 1 . . . . . . . . . Drone 2 | . . . . . . . . . . . . . . . . . . . . . . . . . . . . . . . 2 . . . . . . . . . Watcher 20 | . 2 . 5 . . . 2 . 1 . . . . . . . . 2 . 1 1 1 . . . . . . . . 1 . 1 1 . . 1 . . 1 Swarmer 71 | . . 3 10 8 . . 4 6 4 3 . . . . . . . 3 . 3 3 . . . 6 14 . . . 4 . . . . . . . . . . Grunt 85 | . 8 2 19 . . 3 13 5 16 8 . . . . . . . . . . 4 . . . 3 . . . . . . . . . . . 3 . 1 . Brawler 2 | . . . . . . . . . . . . . . . . . . . . . . . . . 1 . . . . . . . . . . . 1 . . . Duelist 2 | . . . 1 . . . . . . . . . . . . . . . . . . . . . . 1 . . . . . . . . . . . . . . Sentry 28 | . . . 10 . . . 4 3 3 2 . . . . . . . . . 1 . . 4 . . . . . . . . . . . . . . . 1 . Hunter 2 | . . . . . . 1 1 . . . . . . . . . . . . . . . . . . . . . . . . . . . . . . . . . Programmer 4 | . . . . . . . . . . . . . . . . . . 1 . . . . . . . 2 . . . . . . . . . . 1 . . . Behemoth 1 | . . . . . . . . . . . . . . . . . . . . . 1 . . . . . . . . . . . . . . . . . . . Cetus Guard 5 | . . . . . . . . . . . . . . . . . . . . . . 5 . . . . . . . . . . . . . . . . . . Thug 1 | . . . . . . . . . . 1 . . . . . . . . . . . . . . . . . . . . . . . . . . . . . . Best Kill Streak 14 | 6 7 3 14 4 . 2 11 4 9 5 . . 3 . . . . 3 . 3 4 3 9 1 3 5 . . . 4 2 . 1 1 . 1 1 . 1 1 Combat Bots Only 8 | . 2 3 8 4 . 2 8 4 4 5 . . . . . . . 3 . 3 3 2 1 . 3 5 . . . 4 2 . . . . . 1 . 1 . Max Kills in Single Turn 4 | 1 1 3 3 4 . 2 3 2 2 1 . . 1 . . . . 3 . 3 2 1 1 1 3 3 . . . 2 1 . 1 1 . 1 1 . 1 1 Gunslinging . | . . . . . . . . . . . . . . . . . . . . . . . . . . . . . . . . . . . . . . . . . Exploded 4 | . . 3 3 4 . 2 1 2 1 1 . . . . . . . 3 . 3 2 . . . 3 3 . . . 2 . . . . . . . . . . Melee 1 | . . . . . . . . 1 . . . . . . . . . 1 . 1 1 . . . . 1 . . . . 1 . . . . . 1 . 1 . Uniques/NPCs Destroyed 1 | . . . . . . . . . . . . . . . . . . . . . . . . . . . . . . . 1 . . . . . . . . . CY-PHR (-4/Factory) Combat | -11 -10 -10 -9 -9 -9 -8 -8 -8 -8 -8 -7 -7 -7 -7 -7 -7 -6 -6 -6 -6 -6 -6 -6 -6 -6 -5 -5 -5 -5 -4 -4 -4 -4 -4 -4 -3 -3 -2 -2 -1 -------- Run | Yrd Mat Min Mat Min Exi Min Mat Gar Mat Gar Fac Was Fac Low Low Dat Pro Fac Was Fac Ext Cet Arc Hub Gar Fac Upp Upp War Pro Fac Was Fac Arm Lab Res Gar Res Gar Acc Hostile Shots Fired 882 | . 51 20 101 12 . 5 84 40 55 83 . 3 . 10 . . 4 28 . 10 46 6 2 . 16 106 9 10 3 31 59 . 51 11 . . 19 . 7 . Missed 308 | . 11 5 31 3 . 2 30 7 19 14 . . . 6 . . 3 13 . 5 20 2 1 . 2 53 7 6 1 12 9 . 29 5 . . 8 . 4 . Hits 574 | . 40 15 70 9 . 3 54 33 36 69 . 3 . 4 . . 1 15 . 5 26 4 1 . 14 53 2 4 2 19 50 . 22 6 . . 11 . 3 . Melee 6 | . . . 1 . . . . . . . . 3 . . . . . . . . . . . . 2 . . . . . . . . . . . . . . . Projectile 568 | . 40 15 69 9 . 3 54 33 36 69 . . . 4 . . 1 15 . 5 26 4 1 . 12 53 2 4 2 19 50 . 22 6 . . 11 . 3 . AOE 1 | . . . . . . . . . . . . . . . . . . . . . . . . . . . . . . . 1 . . . . . . . . . Critical Strikes 34 | . . . 2 . . 1 2 . 2 4 . 2 . . . . . . . . . . . . . 1 . 1 . . 17 . . . . . 2 . . . Actively Blocked 4 | . . . . . . . 1 . . . . 1 . . . . . . . . . . . . . . . . . . . . . . . . 2 . . . Part Disruptions 6 | . . . . . . . . . . . . . . . . . . . . . . . . . . . . . . . 5 . . . . . 1 . . . Damage Taken 10138 | . 544 181 968 100 . 53 912 409 567 1135 . 118 . 37 . . 18 215 . 129 307 132 28 . 347 1263 40 80 166 311 1136 . 430 121 . . 298 . 93 . Core 2303 | . 124 80 125 7 . . 59 8 30 208 . 39 . 11 . . 18 120 . 23 58 105 . . 77 401 20 . 81 145 402 . 58 62 . . 17 . 25 . Absorbed by Shields 28 | . . . . . . . . . . . . . . . . . . . . . 28 . . . . . . . . . . . . . . . . . . . Redirected to Shielding 298 | . . . . . . . 44 . . . . 25 . . . . . 6 . . . . . . . 111 . . . . . . . . . . 94 . 18 . Regen/Repaired (Parts) 889 | . 95 . 63 . . . . . 15 . . . . . . . . . . 97 . . . . . 54 . . . . 33 . 35 . . 272 . 225 . . Core Remaining (%) 71 | 100 . 18 . . . 67 . . . 44 . . . . . . 90 . . . . . . . 54 . . . . 35 . . . . 79 . 98 . 98 100 Volleys Fired 689 | 13 79 10 89 5 . 5 45 26 60 40 1 9 4 . . . . 2 . 5 15 34 16 9 75 39 1 10 18 13 5 . 5 . . . 39 . 17 . Largest 3 | 2 2 2 3 3 . 3 3 3 3 3 3 1 1 . . . . 1 . 1 1 1 1 1 1 1 1 1 1 1 1 . 1 . . . 1 . 1 . Hottest 201 | 90 115 100 201 168 . 168 168 191 191 191 191 120 120 . . . . 39 . 39 120 120 120 120 120 120 90 90 120 120 120 . 55 . . . 80 . 10 . Shots Fired 1228 | 26 157 19 248 10 . 15 108 57 178 94 3 8 3 . . . . 2 . 5 15 34 16 9 75 39 1 10 18 13 4 . 5 . . . 39 . 17 . Gun 637 | 26 157 18 208 . . . 5 14 109 37 1 . . . . . . . . . . . . . 38 . . . . . . . . . . . 24 . . . Cannon 500 | . . . 31 8 . 15 98 41 69 55 2 8 3 . . . . . . . 5 34 16 9 29 28 1 10 18 11 4 . 5 . . . . . . . Launcher 60 | . . 1 9 2 . . 5 2 . 2 . . . . . . . 2 . 5 10 . . . 8 11 . . . 2 . . . . . . 1 . . . Special 31 | . . . . . . . . . . . . . . . . . . . . . . . . . . . . . . . . . . . . . 14 . 17 . Kinetic 14 | . . . . . . . . . . . . . . . . . . . . . . . . . 9 . . . . . . . 5 . . . . . . . Thermal 786 | 26 157 18 129 . . . . 37 136 75 3 8 3 . . . . . . . 5 34 16 9 58 28 1 10 18 11 4 . . . . . . . . . Explosive 60 | . . 1 9 2 . . 5 2 . 2 . . . . . . . 2 . 5 10 . . . 8 11 . . . 2 . . . . . . 1 . . . Electromagnetic 337 | . . . 110 8 . 15 103 18 42 17 . . . . . . . . . . . . . . . . . . . . . . . . . . 24 . . . Robot Hit Streak 28 | 4 9 13 28 5 . 5 27 12 10 13 . 8 9 . . . . . . 11 12 . . . 4 7 . 4 . 3 . . . . . . 9 . 11 . Robot Miss Streak 4 | 3 3 1 4 1 . 1 2 2 3 4 3 . . . . . . . . . 1 . . . 1 3 . 2 . 1 . . . . . . 3 . . . Penetration Max . | . . . . . . . . . . . . . . . . . . . . . . . . . . . . . . . . . . . . . . . . . Secondary Targets 2 | . . . 1 . . . . . . 1 . . . . . . . . . . . . . . . . . . . . . . . . . . . . . . Max Gunslinging Chain 1 | . . . 1 . . . . . . 1 . . . . . . . . . . . . . . . . . . . . . . . . . . . . . . Shots Hit Robots 872 | 12 96 16 165 5 . 9 79 38 109 52 . 8 13 2 1 . . 9 . 9 45 3 11 3 14 37 . 5 . 6 23 . 10 14 . 9 32 1 34 2 Core Hits 445 | 7 34 7 84 9 . 7 52 19 53 23 . 1 6 1 1 . . 9 . 8 19 13 13 . 16 29 . 2 . 5 11 . 3 1 . 3 5 . 3 1 Critical Kills 1 | . . . . . . . . 1 . . . . . . . . . . . . . . . . . . . . . . . . . . . . . . . . Critical Parts Destroyed . | . . . . . . . . . . . . . . . . . . . . . . . . . . . . . . . . . . . . . . . . . Critical Strikes 27 | 4 8 3 5 . . . . 1 2 . . . . . . . . . . . . . . . . . . . . . 1 . 1 . . . 2 . . . Burn 21 | 4 8 3 4 . . . . . 2 . . . . . . . . . . . . . . . . . . . . . . . . . . . . . . . Meltdown 1 | . . . . . . . . 1 . . . . . . . . . . . . . . . . . . . . . . . . . . . . . . . . Corrupt 1 | . . . 1 . . . . . . . . . . . . . . . . . . . . . . . . . . . . . . . . . . . . . Sever 4 | . . . . . . . . . . . . . . . . . . . . . . . . . . . . . . . 1 . 1 . . . 2 . . . Melee Attacks 691 | . . . . . . . 4 12 3 24 4 . 47 4 3 . 3 32 . 35 49 11 19 12 25 94 3 1 2 5 62 . 50 20 5 22 41 15 76 8 Impact 5 | . . . . . . . . . . . . . . . . . . . . . . . . . . . . . 2 3 . . . . . . . . . . Slashing 588 | . . . . . . . 4 12 3 16 4 . 45 4 3 . 3 30 . 34 20 11 19 10 25 89 3 1 . 2 61 . 45 9 5 18 36 14 54 8 Piercing . | . . . . . . . . . . . . . . . . . . . . . . . . . . . . . . . . . . . . . . . . . Sneak Attacks 142 | . . . . . . . 1 . . . . . 10 . . . . 5 . 6 34 . 10 3 . 11 . . . . 8 . 6 12 . 7 6 1 22 . Combat Hostiles 5 | . . . . . . . . . . . . . . . . . . . . 1 3 . . . . . . . . . . . . . . . 1 . . . Follow-up Attacks 1 | . . . . . . . . . . . . . . . . . . . . . 1 . . . . . . . . . . . . . . . . . . . Damage Inflicted 33548 | 160 1213 344 4146 509 . 530 2885 1309 2536 1187 . 277 842 159 71 . . 691 . 984 2145 1333 1737 100 1260 2627 . 167 105 552 1645 . 622 288 . 627 1141 . 1167 189 Guns 5976 | 160 1213 194 2059 . . . 49 173 1393 481 . . . . . . . . . . . . . . 92 . . . . . . . . . . . 162 . . . Cannons 8412 | . . . 539 70 . 209 1788 541 838 495 . 277 115 . . . . . . . 161 1198 547 . 837 349 . 167 105 74 102 . . . . . . . . . Explosions 7224 | . . 150 1548 439 . 321 945 384 305 211 . . . . . . . 212 . 344 945 . . . 148 1073 . . . 199 . . . . . . . . . . Melee 11936 | . . . . . . . 103 211 . . . . 727 159 71 . . 479 . 640 1039 135 1190 100 183 1205 . . . 279 1543 . 622 288 . 627 979 . 1167 189 Ramming . | . . . . . . . . . . . . . . . . . . . . . . . . . . . . . . . . . . . . . . . . . Kinetic 92 | . . . . . . . . . . . . . . . . . . . . . . . . . 92 . . . . . . . . . . . . . . . Thermal 10901 | 160 1213 194 1571 . . 321 270 581 1904 755 . 277 115 . . . . . . . 161 1198 547 . 837 349 . 167 105 74 102 . . . . . . . . . Explosive 5955 | . . 150 1354 439 . . 660 286 . 145 . . . . . . . 212 . 344 945 . . . 148 1073 . . . 199 . . . . . . . . . . Electromagnetic 4664 | . . . 1221 70 . 209 1852 231 632 287 . . . . . . . . . . . . . . . . . . . . . . . . . . 162 . . . Impact 131 | . . . . . . . . . . . . . . . . . . . . . . . . . . . . . . 131 . . . . . . . . . . Slashing 11805 | . . . . . . . 103 211 . . . . 727 159 71 . . 479 . 640 1039 135 1190 100 183 1205 . . . 148 1543 . 622 288 . 627 979 . 1167 189 Piercing . | . . . . . . . . . . . . . . . . . . . . . . . . . . . . . . . . . . . . . . . . . Highest Corruption 15 | . . . 1 1 1 1 3 3 3 3 . 15 15 5 5 5 5 1 8 8 . . . . . . . . . . . 9 11 1 1 . 1 . . . Average Corruption 3 | . . . 1 1 1 1 3 3 3 3 . 11 7 5 5 5 5 1 4 3 . . . . . . . . . . . 9 4 1 1 . 1 . . . Corruption Purged 29 | . . . . . . . . . . . . . 10 . . . . . . 8 . . . . . . . . . . . . 11 . . . . . . . Corruption Blocked . | . . . . . . . . . . . . . . . . . . . . . . . . . . . . . . . . . . . . . . . . . Effects 164 | . . . 6 2 . 3 10 12 17 22 . 8 41 1 3 2 6 2 . 9 . . . . . . . . . . . . 8 4 1 . 7 . . . Message Errors 47 | . . . 3 1 . 3 1 4 5 8 . 1 10 . 2 1 . . . 2 . . . . . . . . . . . . 1 1 1 . 3 . . . Matter Fused 42 | . . . . 1 . . 2 5 3 2 . 2 12 . . . 2 1 . 5 . . . . . . . . . . . . 5 1 . . 1 . . . Heat Flow Errors 17 | . . . . . . . 1 . 4 3 . 1 7 . 1 . . . . . . . . . . . . . . . . . . . . . . . . . Energy Discharges 17 | . . . 1 . . . 2 1 2 1 . 2 1 1 . . 2 1 . . . . . . . . . . . . . . 2 . . . 1 . . . Parts Rejected 2 | . . . . . . . . . 1 . . . . . . . . . . . . . . . . . . . . . . . . . . . 1 . . . Data Loss (minor) 19 | . . . . . . . 2 1 2 4 . . 5 . . 1 2 . . 1 . . . . . . . . . . . . . . . . 1 . . . Data Loss (major) 6 | . . . . . . . . . . 1 . . 2 . . . . . . 1 . . . . . . . . . . . . . 2 . . . . . . Misfires 5 | . . . 1 . . . 1 . . 3 . . . . . . . . . . . . . . . . . . . . . . . . . . . . . . Alerts 4 | . . . 1 . . . . . . . . . 3 . . . . . . . . . . . . . . . . . . . . . . . . . . . Misdirections 1 | . . . . . . . . . . . . 1 . . . . . . . . . . . . . . . . . . . . . . . . . . . . Weapon Failures 4 | . . . . . . . 1 1 . . . 1 1 . . . . . . . . . . . . . . . . . . . . . . . . . . . Overload Shots . | . . . . . . . . . . . . . . . . . . . . . . . . . . . . . . . . . . . . . . . . . Overflow Damage 3464 | . . 32 140 44 . 30 114 50 57 2 . . 245 76 . . . 25 . 88 209 10 499 70 58 284 . 24 . 213 174 . 152 103 . 234 382 . 115 34 Projectiles 201 | . . . 44 . . . 20 . 32 2 . . 20 . . . . . . . . . . . 39 . . 24 . 7 13 . . . . . . . . . Explosions 412 | . . 32 96 44 . 30 31 50 25 . . . . . . . . . . 12 46 . . . 12 20 . . . 14 . . . . . . . . . . Melee 2851 | . . . . . . . 63 . . . . . 225 76 . . . 25 . 76 163 10 499 70 7 264 . . . 192 161 . 152 103 . 234 382 . 115 34 Knockbacks . | . . . . . . . . . . . . . . . . . . . . . . . . . . . . . . . . . . . . . . . . . Impact . | . . . . . . . . . . . . . . . . . . . . . . . . . . . . . . . . . . . . . . . . . Kinetic . | . . . . . . . . . . . . . . . . . . . . . . . . . . . . . . . . . . . . . . . . . Secondary . | . . . . . . . . . . . . . . . . . . . . . . . . . . . . . . . . . . . . . . . . . Self-Inflicted Damage 474 | . . . 53 31 . . 106 . 33 . . . . . . . . . . 49 39 . . . 60 . . . . 52 . . . . . . 51 . . . Shots 17 | . . . 2 1 . . 5 . 1 . . . . . . . . . . 3 1 . . . 2 . . . . 1 . . . . . . 1 . . . Rammed . | . . . . . . . . . . . . . . . . . . . . . . . . . . . . . . . . . . . . . . . . . Targets Rammed . | . . . . . . . . . . . . . . . . . . . . . . . . . . . . . . . . . . . . . . . . . Kicked . | . . . . . . . . . . . . . . . . . . . . . . . . . . . . . . . . . . . . . . . . . Crushed . | . . . . . . . . . . . . . . . . . . . . . . . . . . . . . . . . . . . . . . . . . Highest Temperature 611 | 180 199 174 379 51 . 102 198 199 201 322 48 244 274 . 97 . . 8 . 6 366 338 366 192 218 342 30 210 209 150 611 25 111 64 17 2 210 . . . Average Temperature 69 | 81 75 100 91 28 . 41 60 87 126 123 24 92 114 . 50 . . 3 . 6 125 168 157 84 74 96 10 83 99 52 47 14 20 17 7 1 80 . . . Received Heat Transfer 3232 | . 303 93 381 . . 9 414 144 324 585 . . . 6 . . 9 33 . . 84 18 . . 99 117 18 21 . . 391 . 87 42 . . 36 . 18 . Effects 14 | . . . 2 . . . . . . . . . . . . . . . . . 1 2 1 . . . . . . . 8 . . . . . . . . . Shutdowns 5 | . . . 1 . . . . . . . . . . . . . . . . . 1 . . . . . . . . . 3 . . . . . . . . . Interference 4 | . . . 1 . . . . . . . . . . . . . . . . . . 2 . . . . . . . . 1 . . . . . . . . . Matter Decay 2 | . . . . . . . . . . . . . . . . . . . . . . . . . . . . . . . 2 . . . . . . . . . Short Circuit 1 | . . . . . . . . . . . . . . . . . . . . . . . 1 . . . . . . . . . . . . . . . . . Damage (minor) 1 | . . . . . . . . . . . . . . . . . . . . . . . . . . . . . . . 1 . . . . . . . . . Damage (core) 1 | . . . . . . . . . . . . . . . . . . . . . . . . . . . . . . . 1 . . . . . . . . . Siege Activations . | . . . . . . . . . . . . . . . . . . . . . . . . . . . . . . . . . . . . . . . . . Martial Activations . | . . . . . . . . . . . . . . . . . . . . . . . . . . . . . . . . . . . . . . . . . Shielding Activations . | . . . . . . . . . . . . . . . . . . . . . . . . . . . . . . . . . . . . . . . . . Robots Disrupted 1 | . . . . . . . . . . . . . . . . . . . . . . . . . . . . . . . . . . . . . 1 . . . Combat Hostiles 1 | . . . . . . . . . . . . . . . . . . . . . . . . . . . . . . . . . . . . . 1 . . . Robots Corrupted 4 | . . . . . . . 2 . . 1 . . . . . . . . . . . . . . . . . . . . . . . . . . 1 . . . Combat Hostiles 4 | . . . . . . . 2 . . 1 . . . . . . . . . . . . . . . . . . . . . . . . . . 1 . . . Parts Fried 34 | . . . 13 . . 2 9 3 4 2 . . . . . . . . . . . . . . . . . . . 1 . . . . . . . . . . Impact Corruptions 4 | . . . . . . . . . . . . . . . . . . . . . . . . . . . . . . 4 . . . . . . . . . . Robots Melted 9 | . 2 . . . . . . 1 3 . . . . . . . . . . . 1 2 . . . . . . . . . . . . . . . . . . Combat Hostiles 9 | . 2 . . . . . . 1 3 . . . . . . . . . . . 1 2 . . . . . . . . . . . . . . . . . . Parts Melted 42 | 2 4 3 7 . . 1 . 5 7 3 . . 1 . . . . . . . . 1 . . . 8 . . . . . . . . . . . . . . Heat Transferred 24623 | 754 4059 777 3914 . . 400 300 938 3495 1321 . 640 240 . . . . . . . 320 2720 1280 . 1920 720 . 185 240 160 240 . . . . . . . . . Parts Sabotaged . | . . . . . . . . . . . . . . . . . . . . . . . . . . . . . . . . . . . . . . . . . Parts Stolen . | . . . . . . . . . . . . . . . . . . . . . . . . . . . . . . . . . . . . . . . . . Parts Stripped . | . . . . . . . . . . . . . . . . . . . . . . . . . . . . . . . . . . . . . . . . . Power Chain Reactions 15 | . . . 4 . . . 5 1 4 1 . . . . . . . . . . . . . . . . . . . . . . . . . . . . . . Alert | -11 -10 -10 -9 -9 -9 -8 -8 -8 -8 -8 -7 -7 -7 -7 -7 -7 -6 -6 -6 -6 -6 -6 -6 -6 -6 -5 -5 -5 -5 -4 -4 -4 -4 -4 -4 -3 -3 -2 -2 -1 ------- Run | Yrd Mat Min Mat Min Exi Min Mat Gar Mat Gar Fac Was Fac Low Low Dat Pro Fac Was Fac Ext Cet Arc Hub Gar Fac Upp Upp War Pro Fac Was Fac Arm Lab Res Gar Res Gar Acc Maximum Alert Level 3 | . . . 2 1 . 1 2 2 3 3 2 . . . . . . 1 . . 2 1 . . 1 3 . . . . . . . . . . 2 1 2 . Low Security (%) 55 | 100 100 100 16 . . 84 17 5 . . . 100 100 . . . . 89 100 100 18 62 100 100 73 3 . . . . 100 100 100 100 . 100 17 99 33 100 Level 1 20 | . . . 26 100 . 15 53 30 29 . 42 . . . . . . 10 . . 59 37 . . 26 42 . . . . . . . . . . 52 . 59 . Level 2 19 | . . . 56 . . . 29 64 55 74 57 . . . . . . . . . 22 . . . . 19 . . . . . . . . . . 30 . 7 . Level 3 4 | . . . . . . . . . 14 25 . . . . . . . . . . . . . . . 34 . . . . . . . . . . . . . . Level 4 . | . . . . . . . . . . . . . . . . . . . . . . . . . . . . . . . . . . . . . . . . . Level 5 . | . . . . . . . . . . . . . . . . . . . . . . . . . . . . . . . . . . . . . . . . . High Security . | . . . . . . . . . . . . . . . . . . . . . . . . . . . . . . . . . . . . . . . . . Max Security . | . . . . . . . . . . . . . . . . . . . . . . . . . . . . . . . . . . . . . . . . . Peak Influence 884 | 20 55 81 605 365 . 240 586 646 722 866 458 119 65 . . . . 256 86 169 454 261 66 22 354 884 . . . . 54 . 134 182 . 38 562 315 483 167 Initial 454 | . 6 5 23 214 . . 87 180 314 450 454 119 6 . . . . . 86 53 78 218 35 9 . 185 . . . . 6 . . . . . 4 315 . 139 Average 229 | 3 19 28 373 312 . 36 318 465 539 642 404 83 21 . . . . 94 82 71 293 163 42 6 184 517 . . . . 9 . 43 58 . 9 330 77 217 77 Influence Increases 13984 | 30 372 131 1334 211 . 291 887 496 747 646 18 . 331 25 5 . . 533 . 449 958 250 141 89 424 1797 75 50 . 130 244 . 422 460 . 191 668 182 1152 245 Destroy 0b10 Robot/C 5260 | . 160 100 800 160 . 80 440 280 460 340 . . . . . . . 80 . 80 500 160 80 . 260 340 . . . 80 . . . 140 . 20 140 60 360 140 Destroy 0b10 Robot/NC 690 | 30 80 . 95 10 . 5 65 10 55 . . . 45 10 5 . . 25 . 20 25 5 45 5 . 40 . 5 . 10 45 . 15 5 . 15 5 . 10 5 Destroy Leader 850 | . 48 20 220 20 . 20 118 10 108 10 . . . . . . . 24 . 22 42 . . . 10 42 . . . 10 8 . 4 32 . 10 . 20 30 22 Allied During Kill 597 | . . . . . . . . . . 10 . . . . . . . . . . 171 83 . . 5 . . . . . . . . 34 . 7 6 15 266 . Trap Triggered on 0b10 60 | . 20 . . . . . . . . . . . . . . . . 10 . . . . . . . . . . . . . . . 10 . . . 20 . . Successful Hack 884 | . 18 . 44 . . . 33 14 21 . 14 . 61 . . . . 77 . 59 6 . . 10 8 83 . . . . 48 . 115 66 . 100 32 16 8 51 Select Force Hacks 270 | . . . 30 . . . 30 . 30 . . . 30 . . . . 30 . . . . . . . 120 . . . . . . . . . . . . . . Disable Machine 525 | . . . 45 . . 135 60 . . . . . 30 . . . . . . 30 15 . 15 60 . 60 . . . . . . . 15 . . 45 . 15 . Anti-Garrison Action 900 | . . . . . . . . 150 . 200 . . . . . . . . . . . . . . 50 . . . . . . . . . . . 250 . 250 . Destroy Structure 1403 | . 1 11 70 21 . 36 51 32 28 71 4 . 30 . . . . 32 . 88 49 2 1 14 61 292 . . . . 68 . 78 8 . 24 115 36 168 12 Partial Spotted 480 | . . . . . . . . . 30 . . . 60 . . . . 60 . 30 30 . . . . 75 . . . . 30 . 45 15 . 15 30 15 30 15 Lose Combat Pursuer 1965 | . 45 . 30 . . 15 90 . 15 15 . . 75 15 . . . 195 . 120 120 . . . 30 645 75 45 . 30 45 . 165 135 . . 45 . 15 . Miscellaneous 100 | . . . . . . . . . . . . . . . . . . . . . . . . . . 100 . . . . . . . . . . . . . . Influence Decreases 13867 | 20 367 85 845 466 295 67 833 128 700 473 542 333 337 13 20 . . 285 172 364 729 552 203 114 71 1280 383 178 435 120 252 2 422 460 . 185 112 744 920 360 Entered New Map 4031 | . 4 10 38 336 295 . 137 98 332 243 412 223 3 2 4 . . . 162 23 83 172 53 17 1 169 323 108 435 . 4 2 . . . . 2 247 . 93 Time Decay 5868 | 20 353 75 607 130 . 67 326 . 368 . 130 70 324 11 16 . . 275 10 301 326 120 140 97 . 571 60 60 . 100 248 . 292 290 . 167 . 257 . 57 Search Patrol Dispatched 300 | . . . . . . . . . . . . . . . . . . . . . . . . . . 300 . . . . . . . . . . . . . . Lost Part 472 | . 10 . 50 . . . 70 30 . 80 . 40 . . . . . . . . 30 . 10 . 50 70 . 10 . 20 . . 2 . . . . . . . Lost Ally 1568 | . . . . . . . . . . 150 . . 10 . . . . 10 . 40 290 260 . . 20 20 . . . . . . . 170 . 18 110 90 320 60 Purge Threat 1628 | . . . 150 . . . 300 . . . . . . . . . . . . . . . . . . 150 . . . . . . 128 . . . . 150 600 150 Squads Dispatched 92 | . 1 . 4 . . . 4 . 9 . 1 . 10 . . . . 8 . 4 3 . . . . 12 . . . . 7 . 7 6 . 6 . 9 . 1 Investigation 39 | . . . 3 . . . 2 . 5 . . . 5 . . . . 5 . 2 1 . . . . 4 . . . . 2 . 2 2 . 3 . 3 . . Extermination 25 | . . . . . . . . . . . 1 . 3 . . . . 3 . 2 . . . . . 5 . . . . 3 . 3 3 . . . 2 . . Reinforcement 24 | . 1 . 1 . . . 2 . 1 . . . 2 . . . . . . . 2 . . . . 3 . . . . 2 . 2 1 . 3 . 4 . . Assault . | . . . . . . . . . . . . . . . . . . . . . . . . . . . . . . . . . . . . . . . . . Garrison 4 | . . . . . . . . . 3 . . . . . . . . . . . . . . . . . . . . . . . . . . . . . . 1 Intercept . | . . . . . . . . . . . . . . . . . . . . . . . . . . . . . . . . . . . . . . . . . Searches Triggered 3 | . . . . . . . . . . . . . . . . . . . . . . . . . . 3 . . . . . . . . . . . . . . Data Miner Redirects 4 | . . . . . . . . . . . . . . . . . . 1 . 2 . . . . . . . . . . . . . 1 . . . . . . Construction Impeded 4 | . . . . . . . 1 . . . . . 1 . . . . . . . 2 . . . . . . . . . . . . . . . . . . . Haulers Reinforced 3 | . . . . . . . . . . . . . . . . . . . . . . . . . . 1 . . . . 1 . . . . 1 . . . . Active Scanning Responses . | . . . . . . . . . . . . . . . . . . . . . . . . . . . . . . . . . . . . . . . . . Cargo Convoy Interrupts . | . . . . . . . . . . . . . . . . . . . . . . . . . . . . . . . . . . . . . . . . . Alert ID Control Effect 9 | . . . . . . . . . . . . . . . . . . . . . . . . . . . . . . . . . . . . . . . 4 5 Stealth | -11 -10 -10 -9 -9 -9 -8 -8 -8 -8 -8 -7 -7 -7 -7 -7 -7 -6 -6 -6 -6 -6 -6 -6 -6 -6 -5 -5 -5 -5 -4 -4 -4 -4 -4 -4 -3 -3 -2 -2 -1 --------- Run | Yrd Mat Min Mat Min Exi Min Mat Gar Mat Gar Fac Was Fac Low Low Dat Pro Fac Was Fac Ext Cet Arc Hub Gar Fac Upp Upp War Pro Fac Was Fac Arm Lab Res Gar Res Gar Acc Distress Signals 26 | . . . 3 . . . 5 . 5 . . . 2 . . . . 1 . . . 1 . . . 2 . . . . . . 1 . . 4 . 2 . . Communications Jammed 6 | . . . . . . . . . . . . . . . . . . . . . . . . . . . . . . . . . . . . . 4 2 . . Distress Signals 6 | . . . . . . . . . . . . . . . . . . . . . . . . . . . . . . . . . . . . . 4 2 . . Times Spotted 535 | . 15 6 55 8 . 4 34 12 34 26 1 4 8 2 . . 6 20 6 11 32 12 6 2 10 81 10 4 1 6 16 6 42 11 . 2 12 11 17 2 Peak Tracking Total 14 | . 2 3 7 4 . 3 8 4 4 5 1 4 3 2 . . 6 8 6 6 5 5 1 1 4 14 6 4 4 4 7 6 11 5 . 1 2 2 3 1 Tactical Retreats 80 | . 3 . 2 . . 1 5 . 1 1 . 1 4 1 . . . 4 . 4 6 . . . 2 20 1 1 . 1 2 . 7 5 . . 3 4 1 . ECM-based Alert Blocks 20 | . . . . . . . . . . . . . . . . . . . . . . . . . . . . . . . . . 16 . . . . 4 . . Traps | -11 -10 -10 -9 -9 -9 -8 -8 -8 -8 -8 -7 -7 -7 -7 -7 -7 -6 -6 -6 -6 -6 -6 -6 -6 -6 -5 -5 -5 -5 -4 -4 -4 -4 -4 -4 -3 -3 -2 -2 -1 ------- Run | Yrd Mat Min Mat Min Exi Min Mat Gar Mat Gar Fac Was Fac Low Low Dat Pro Fac Was Fac Ext Cet Arc Hub Gar Fac Upp Upp War Pro Fac Was Fac Arm Lab Res Gar Res Gar Acc Traps Triggered 30 | . . . 2 . . . . 3 1 9 1 . 2 . . . . 1 . . 2 . . . 4 1 . . . . 2 . 1 1 . . . . . . Indirectly . | . . . . . . . . . . . . . . . . . . . . . . . . . . . . . . . . . . . . . . . . . Trap Hack Attempts 65 | . 13 . . . . . . . . . . . 4 . . . . 32 . . . . . . . . . . 4 . . . . . . . 3 7 2 . Triggered . | . . . . . . . . . . . . . . . . . . . . . . . . . . . . . . . . . . . . . . . . . Disarmed 22 | . . . . . . . . . . . . . . . . . . . . . . . . . . . . . . . 6 . . 6 . 9 1 . . . Reprogrammed 28 | . 2 . . . . . . . . . . . 1 . . . . 6 . . . . . . . . . . 1 . . . 11 4 . . 1 2 . . Reused 10 | . 2 . . . . . . . . . . . . . . . . 1 . . . . . . . . . . . . 4 . . 1 . . . 2 . . Traps Extracted 8 | . . . . . . . . . . . . . 1 . . . . 5 . . . . . . . . . . . . 2 . . . . . . . . . Installed 6 | . . . . . . . . . . . . . . . . . . . . . . . . . . . . . . . 6 . . . . . . . . . Triggered 6 | . 2 . . . . . . . . . . . . . . . . 1 . . . . . . . . . . . . . . . 1 . . . 2 . . Most Traps Carried 6 | . . . . . . . . . . . . . 1 1 1 1 1 6 6 6 6 6 6 6 6 6 6 6 6 6 6 . . . . . . . . . Machines | -11 -10 -10 -9 -9 -9 -8 -8 -8 -8 -8 -7 -7 -7 -7 -7 -7 -6 -6 -6 -6 -6 -6 -6 -6 -6 -5 -5 -5 -5 -4 -4 -4 -4 -4 -4 -3 -3 -2 -2 -1 ---------- Run | Yrd Mat Min Mat Min Exi Min Mat Gar Mat Gar Fac Was Fac Low Low Dat Pro Fac Was Fac Ext Cet Arc Hub Gar Fac Upp Upp War Pro Fac Was Fac Arm Lab Res Gar Res Gar Acc Machines Disabled 61 | . . . 3 . . 9 4 2 . 4 . . 2 . . . . . . 2 4 . 1 4 1 4 . . 1 . . . 1 1 1 . 11 . 6 . Max in Single Turn 9 | . . . 1 . . 9 2 1 . 1 . . 1 . . . . . . 2 2 . 1 1 1 2 . . 1 . . . 1 1 1 . 2 . 1 . Garrison Access 12 | . . . . . . . . . . . . . 1 . . . . 1 . 3 . . . 1 . 3 . . . . 2 . 1 . . . . . . . Garrison Relay 17 | . . . . . . . . 2 . 4 . . . . . . . . . . . . . . 1 . . . . . . . . . . . 4 . 6 . Phase Generator 1 | . . . . . . . . . . . . . . . . . . . . . . . . . . . . . . . . . . . . . 1 . . . Network Hub 3 | . . . . . . . . . . . . . . . . . . . . . . . . 3 . . . . . . . . . . . . . . . . Machines Repaired . | . . . . . . . . . . . . . . . . . . . . . . . . . . . . . . . . . . . . . . . . . Machines Dismantled 3 | . . . . . . . . . . . . . . . . . . . . . . . . 3 . . . . . . . . . . . . . . . . Machines Sabotaged . | . . . . . . . . . . . . . . . . . . . . . . . . . . . . . . . . . . . . . . . . . Overloaded Fab Kills . | . . . . . . . . . . . . . . . . . . . . . . . . . . . . . . . . . . . . . . . . . Hacking | -11 -10 -10 -9 -9 -9 -8 -8 -8 -8 -8 -7 -7 -7 -7 -7 -7 -6 -6 -6 -6 -6 -6 -6 -6 -6 -5 -5 -5 -5 -4 -4 -4 -4 -4 -4 -3 -3 -2 -2 -1 --------- Run | Yrd Mat Min Mat Min Exi Min Mat Gar Mat Gar Fac Was Fac Low Low Dat Pro Fac Was Fac Ext Cet Arc Hub Gar Fac Upp Upp War Pro Fac Was Fac Arm Lab Res Gar Res Gar Acc Machines Accessed 216 | . 8 . 13 . 2 . 10 2 8 1 2 . 23 1 . 4 . 13 . 18 2 . . 6 1 27 1 . . . 15 . 14 12 . 15 1 10 4 3 Terminals 130 | . 7 . 9 . . . 6 2 5 1 1 . 14 . . . . 7 . 9 2 . . 4 1 16 . . . . 8 . 8 9 . 8 1 5 4 3 Fabricators 16 | . . . . . . . . . . . . . 2 . . . . 3 . 2 . . . . . . . . . . 2 . 1 3 . 1 . 2 . . Repair Stations 16 | . 1 . 1 . . . 1 . 1 . 1 . 1 . . . . . . 3 . . . . . 2 . . . . 1 . 1 . . 2 . 1 . . Recycling Units 8 | . . . 1 . . . . . . . . . 2 . . . . . . . . . . . . 3 . . . . . . 2 . . . . . . . Scanalyzers 19 | . . . 2 . . . 2 . 1 . . . 3 . . . . 2 . 1 . . . . . 2 . . . . 2 . 1 . . 2 . 1 . . Garrison Access 19 | . . . . . . . 1 . 1 . . . 1 . . . . 1 . 3 . . . 2 . 4 . . . . 2 . 1 . . 2 . 1 . . Total Hacks 901 | . 36 . 52 . 2 . 33 3 28 2 4 . 59 1 . 26 . 40 . 45 4 . . 15 1 67 1 . . . 89 . 97 72 . 104 7 71 26 16 Successful 610 | . 21 . 35 . 2 . 23 1 20 1 1 . 31 1 . 26 . 28 . 32 3 . . 6 1 44 1 . . . 64 . 63 44 . 77 4 61 12 8 Failed 286 | . 15 . 16 . . . 10 2 8 1 3 . 27 . . . . 12 . 13 1 . . 9 . 23 . . . . 24 . 33 28 . 26 3 10 14 8 Catastrophic 28 | . 3 . 2 . . . 1 1 2 . . . 2 . . . . . . . . . . . . 1 . . . . 4 . . 4 . 1 1 . 5 1 Database Lockouts 5 | . . . 1 . . . . . . . . . 1 . . . . . . . . . . . . . . . . . 1 . 1 . . 1 . . . . Manual 461 | . 27 . 24 . 1 . 12 . 17 . 3 . 34 . . . . 18 . 20 1 . . 13 . 32 . . . . 40 . 48 45 . 43 6 41 24 12 Terminals 629 | . 32 . 29 . . . 19 3 15 2 2 . 39 . . . . 22 . 32 4 . . 13 1 52 . . . . 60 . 80 61 . 64 7 50 26 16 Fabricators 49 | . . . . . . . . . . . . . 4 . . . . 11 . 3 . . . . . . . . . . 4 . 4 11 . 3 . 9 . . Repair Stations 51 | . 4 . 7 . . . 3 . 4 . 2 . 2 . . . . . . 6 . . . . . 4 . . . . 3 . 1 . . 11 . 4 . . Recycling Units 20 | . . . 5 . . . . . . . . . 4 . . . . . . . . . . . . 3 . . . . . . 8 . . . . . . . Scanalyzers 85 | . . . 11 . . . 10 . 7 . . . 9 . . . . 6 . 1 . . . . . 3 . . . . 20 . 3 . . 13 . 2 . . Garrison Access 37 | . . . . . . . 1 . 2 . . . 1 . . . . 1 . 3 . . . 2 . 5 . . . . 2 . 1 . . 13 . 6 . . Terminal Hacks 258 | . 9 . 11 . 2 . 5 1 3 1 . . 8 1 . 26 . 6 . 12 2 . . 2 1 18 1 . . . 23 . 30 19 . 32 4 28 8 5 Record 13 | . . . . . 1 . . . . . . . . . . 11 . . . . . . . . . . . . . . . . . . . 1 . . . . Part Schematic 30 | . 2 . . . . . . . . . . . 2 . . 8 . . . 2 . . . . . . . . . . 5 . 4 1 . 2 . 4 . . Robot Schematic 9 | . . . . . . . . . . . . . . . . 4 . . . . . . . . . . . . . . 2 . 1 . . . . 2 . . Robot Analysis 12 | . 3 . . . . . 1 . . . . . . . . . . 1 . . . . . . . 1 . . . . . . 1 1 . 4 . . . . Prototype ID Bank 31 | . 1 . 2 . . . . . 1 . . . 2 . . 3 . 2 . 4 1 . . . . 1 . . . . 2 . 4 1 . 5 . 2 . . Open Door 7 | . . . . . . . . . . 1 . . . 1 . . . . . . . . . . . . 1 . . . . . . 3 . . . . . 1 Level Access Points 3 | . . . . . . . . . . . . . . . . . . . . . . . . . . . . . . . 1 . . . . . . 1 . 1 Branch Access Points 8 | . . . 1 . . . . . . . . . . . . . . 1 . . . . . . . 1 . . . . 2 . 1 . . 1 . 1 . . Emergency Access Points 4 | . . . 1 . . . . . . . . . . . . . . . . . . . . . . . . . . . . . . 1 . . 1 . 1 . Machine Index 4 | . . . . . . . . . . . . . . . . . . . . . . . . . . . . . . . 1 . . 1 . 1 . . . 1 Terminal Index 11 | . 1 . . . . . . . 1 . . . 1 . . . . 1 . 1 . . . . . 1 . . . . . . 1 . . 2 . 2 . . Fabricator Index 2 | . . . . . . . . . . . . . . . . . . 1 . . . . . . . . . . . . . . 1 . . . . . . . Repair Station Index 2 | . . . . . . . . . . . . . . . . . . . . . . . . . . . . . . . . . 1 . . . . 1 . . Recycling Unit Index 1 | . . . . . . . . . . . . . . . . . . . . . . . . . . . . . . . . . 1 . . . . . . . Scanalyzer Index 1 | . . . . . . . . . . . . . . . . . . . . . . . . . . . . . . . . . 1 . . . . . . . Garrison Index 5 | . . . . . . . . . . . . . . . . . . . . 1 . . . . . 1 . . . . 1 . 1 . . . . 1 . . Alert Level 2 | . . . 1 . . . . . . . . . . . . . . . . . . . . . . . . . . . . . . . . 1 . . . . Unreport Threat 12 | . . . 1 . . . 2 . . . . . . . . . . . . . . . . . . 2 . . . . . . 1 . . . . 1 4 1 Locate Traps 22 | . 2 . 1 . . . . . . . . . 1 . . . . . . 2 1 . . . . 4 . . . . 1 . 2 3 . 4 . 1 . . Disarm Traps 5 | . . . . . . . . . . . . . . . . . . . . . . . . . . . . . . . 1 . . 1 . 3 . . . . Reprogram Traps 4 | . . . . . . . . . . . . . . . . . . . . . . . . . . . . . . . . . 3 1 . . . . . . Maintenance Status 1 | . . . . . . . . . . . . . . . . . . . . . . . . . . . . . . . . . . . . 1 . . . . Surveillance Status 1 | . . . . . . . . . . . . . . . . . . . . . . . . . . 1 . . . . . . . . . . . . . . Investigation Status 2 | . . . . . . . . . . . . . . . . . . . . . . . . . . . . . . . . . . . . 1 . 1 . . Extermination Status 3 | . . . . . . . . . . . . . . . . . . . . . . . . . . 1 . . . . . . 1 . . . . 1 . . Recall Investigation 5 | . . . . . . . . . . . . . . . . . . . . . . . . . . . . . . . 1 . 1 . . 1 . 2 . . Recall Extermination 8 | . . . . . . . . . . . . . . . . . . . . . . . . . . 2 . . . . 1 . 2 1 . . . 2 . . Hauler Manifests 3 | . . . 1 . . . . . . . . . . . . . . . . . . . . . . . . . . . 1 . . . . . . 1 . . Registered Components 4 | . . . . . . . . . . . . . . . . . . . . . . . . . . 1 . . . . 1 . 1 . . 1 . . . . Registered Prototypes 6 | . . . . . . . . . . . . . . . . . . . . 1 . . . . . 1 . . . . 1 . . 1 . 1 . 1 . . Zone Layout 28 | . . . 3 . . . 2 . 1 . . . 2 . . . . . . 1 . . . 2 . 1 . . . . 2 . 2 4 . 3 . 4 . 1 Garrison Registry 3 | . . . . . . . . 1 . . . . . . . . . . . . . . . . . . . . . . . . . . . . 1 . 1 . Patrol Navigation 2 | . . . . . . . . . . . . . . . . . . . . . . . . . . . . . . . . . . . . . 1 . 1 . Security Stations 3 | . . . . . . . . . . . . . . . . . . . . . . . . . 1 . . . . . . . . . . . 1 . 1 . Proto ID Catalog 1 | . . . . . 1 . . . . . . . . . . . . . . . . . . . . . . . . . . . . . . . . . . . Fabricator Hacks 26 | . . . . . . . . . . . . . 1 . . . . 6 . 2 . . . . . . . . . . 2 . 2 6 . 1 . 6 . . Network Status 3 | . . . . . . . . . . . . . . . . . . . . . . . . . . . . . . . 1 . . 1 . 1 . . . . Load Schematic 14 | . . . . . . . . . . . . . 1 . . . . 4 . 1 . . . . . . . . . . 1 . 1 3 . . . 3 . . Build 9 | . . . . . . . . . . . . . . . . . . 2 . 1 . . . . . . . . . . . . 1 2 . . . 3 . . Repair Station Hacks 39 | . 4 . 5 . . . 2 . 1 . . . 1 . . . . . . 5 . . . . . 4 . . . . 3 . . . . 10 . 4 . . Scan Component 21 | . 2 . 3 . . . 2 . 1 . . . . . . . . . . 3 . . . . . 2 . . . . 1 . . . . 5 . 2 . . Repair 16 | . 2 . 2 . . . . . . . . . . . . . . . . 2 . . . . . 2 . . . . 1 . . . . 5 . 2 . . Refit 2 | . . . . . . . . . . . . . 1 . . . . . . . . . . . . . . . . . 1 . . . . . . . . . Recycling Unit Hacks 5 | . . . . . . . . . . . . . 2 . . . . . . . . . . . . . . . . . . . 3 . . . . . . . Process 2 | . . . . . . . . . . . . . 1 . . . . . . . . . . . . . . . . . . . 1 . . . . . . . Report Inventory 2 | . . . . . . . . . . . . . 1 . . . . . . . . . . . . . . . . . . . 1 . . . . . . . Retrieve Matter 1 | . . . . . . . . . . . . . . . . . . . . . . . . . . . . . . . . . 1 . . . . . . . Scanalyzer 65 | . . . 7 . . . 7 . 5 . . . 7 . . . . 4 . 1 . . . . . 2 . . . . 19 . 2 . . 9 . 2 . . Insert Component 21 | . . . 2 . . . 2 . 2 . . . 2 . . . . 1 . . . . . . . . . . . . 6 . . . . 5 . 1 . . Analyze 26 | . . . 2 . . . 2 . 2 . . . 3 . . . . 1 . . . . . . . . . . . . 12 . . . . 3 . 1 . . Retrieve Study 18 | . . . 3 . . . 3 . 1 . . . 2 . . . . 2 . 1 . . . . . 2 . . . . 1 . 2 . . 1 . . . . Garrison Access Hacks 19 | . . . . . . . 1 . 1 . . . 1 . . . . 1 . 3 . . . 2 . 4 . . . . 2 . 1 . . 2 . 1 . . Unlock Access 6 | . . . . . . . 1 . 1 . . . . . . . . . . . . . . 1 . . . . . . . . . . . 2 . 1 . . Seal Access 12 | . . . . . . . . . . . . . 1 . . . . 1 . 3 . . . 1 . 3 . . . . 2 . 1 . . . . . . . Coupler Status 1 | . . . . . . . . . . . . . . . . . . . . . . . . . . 1 . . . . . . . . . . . . . . Unauthorized Hacks 198 | . 8 . 12 . . . 8 . 10 . 1 . 11 . . . . 11 . 9 1 . . 2 . 16 . . . . 15 . 25 19 . 23 . 20 4 3 Terminals 154 | . 8 . 8 . . . 7 . 7 . 1 . 9 . . . . 9 . 8 1 . . 2 . 12 . . . . 14 . 18 16 . 14 . 13 4 3 Track 11 | . . . 1 . . . . . . . . . . . . . . . . . . . . 1 . . . . . . 2 . 1 3 . 1 . 1 1 . Assimilate 15 | . . . . . . . . . 1 . . . 2 . . . . 2 . 1 . . . 1 . 2 . . . . . . 3 1 . 1 . 1 . . Botnet 48 | . 2 . 2 . . . 2 . 2 . . . 2 . . . . 2 . 2 . . . . . 3 . . . . 6 . 8 5 . 6 . 4 1 1 Operators 7 | . . . . . . . . . . . . . . . . . . . . . . . . . . . . . . . 1 . 1 1 . 1 . 2 1 . Skim 73 | . 6 . 5 . . . 5 . 4 . 1 . 5 . . . . 5 . 5 1 . . . . 7 . . . . 5 . 5 6 . 5 . 5 1 2 Fabricators 11 | . . . . . . . . . . . . . 1 . . . . 1 . 1 . . . . . . . . . . 1 . 1 3 . 1 . 2 . . Prioritize 6 | . . . . . . . . . . . . . . . . . . 1 . . . . . . . . . . . . . . 1 2 . . . 2 . . Liberate 1 | . . . . . . . . . . . . . . . . . . . . 1 . . . . . . . . . . . . . . . . . . . . Recompile 4 | . . . . . . . . . . . . . 1 . . . . . . . . . . . . . . . . . 1 . . 1 . 1 . . . . Repair Stations 2 | . . . . . . . . . 1 . . . . . . . . . . . . . . . . . . . . . . . 1 . . . . . . . Patch 2 | . . . . . . . . . 1 . . . . . . . . . . . . . . . . . . . . . . . 1 . . . . . . . Recycling Units 11 | . . . 3 . . . . . . . . . . . . . . . . . . . . . . 3 . . . . . . 5 . . . . . . . Monitor 2 | . . . 1 . . . . . . . . . . . . . . . . . . . . . . . . . . . . . 1 . . . . . . . Reject 2 | . . . 1 . . . . . . . . . . . . . . . . . . . . . . . . . . . . . 1 . . . . . . . Recyclers 1 | . . . . . . . . . . . . . . . . . . . . . . . . . . . . . . . . . 1 . . . . . . . Mask 3 | . . . 1 . . . . . . . . . . . . . . . . . . . . . . . . . . . . . 2 . . . . . . . Tunnel 3 | . . . . . . . . . . . . . . . . . . . . . . . . . . 3 . . . . . . . . . . . . . . Scanalyzers 5 | . . . 1 . . . 1 . 1 . . . 1 . . . . 1 . . . . . . . . . . . . . . . . . . . . . . Extract 5 | . . . 1 . . . 1 . 1 . . . 1 . . . . 1 . . . . . . . . . . . . . . . . . . . . . . Garrison Access 15 | . . . . . . . . . 1 . . . . . . . . . . . . . . . . 1 . . . . . . . . . 8 . 5 . . Broadcast 2 | . . . . . . . . . . . . . . . . . . . . . . . . . . . . . . . . . . . . 1 . 1 . . Decoy 2 | . . . . . . . . . . . . . . . . . . . . . . . . . . . . . . . . . . . . 2 . . . . Redirect 2 | . . . . . . . . . . . . . . . . . . . . . . . . . . . . . . . . . . . . 1 . 1 . . Reprogram 4 | . . . . . . . . . 1 . . . . . . . . . . . . . . . . . . . . . . . . . . 2 . 1 . . Intercept 2 | . . . . . . . . . . . . . . . . . . . . . . . . . . . . . . . . . . . . 1 . 1 . . Watchers 2 | . . . . . . . . . . . . . . . . . . . . . . . . . . . . . . . . . . . . 1 . 1 . . Eject 1 | . . . . . . . . . . . . . . . . . . . . . . . . . . 1 . . . . . . . . . . . . . . Data Cores Recovered 4 | . . . . . . . . . . . . . 2 . . . . . . . . . . . . 1 . . . . 1 . . . . . . . . . Used 3 | . . . . . . . . . . . . . 1 . . . . . . . . . . . . 1 . . . . 1 . . . . . . . . . Hacking Detections 140 | . 8 . 13 . . . 8 1 7 . 2 . 20 . . . . 11 . 12 1 . . 2 1 14 . . . . 8 . 6 4 . 9 1 6 4 2 Full Trace Events 19 | . 3 . 2 . . . 1 1 . . . . 3 . . . . 4 . 1 . . . . . . . . . . . . 1 1 . . . 2 . . Feedback Events 1 | . . . . . . . . . . . . . . . . . . 1 . . . . . . . . . . . . . . . . . . . . . . Corruption 1 | . . . . . . . . . . . . . . . . . . 1 . . . . . . . . . . . . . . . . . . . . . . Feedback Blocked . | . . . . . . . . . . . . . . . . . . . . . . . . . . . . . . . . . . . . . . . . . Robot Schematics Acquired 9 | . . . . . . . . . . . . . . . . 4 . . . . . . . . . . . . . . 2 . 1 . . . . 2 . . Robots Built . | . . . . . . . . . . . . . . . . . . . . . . . . . . . . . . . . . . . . . . . . . Authchips . | . . . . . . . . . . . . . . . . . . . . . . . . . . . . . . . . . . . . . . . . . Time . | . . . . . . . . . . . . . . . . . . . . . . . . . . . . . . . . . . . . . . . . . Total Robot Build Rating . | . . . . . . . . . . . . . . . . . . . . . . . . . . . . . . . . . . . . . . . . . Part Schematics Acquired 71 | . 2 . 8 . . . 13 . 3 . . . 7 . . 8 . 2 . 2 . . . . . . . . . . 11 . 4 1 . 5 . 5 . . Parts Built 13 | . . . . . . . . . . . . . . . . . . 3 . 2 . . . . . . . . . . . . 2 2 . . . 4 . . Authchips 4 | . . . . . . . . . . . . . . . . . . 1 . . . . . . . . . . . . . . . 2 . . . 1 . . Time 284 | . . . . . . . . . . . . . . . . . . 104 . 20 . . . . . . . . . . . . 53 37 . . . 70 . . Total Part Build Rating 53 | . . . . . . . . . . . . . . . . . . 13 . 4 . . . . . . . . . . . . 12 8 . . . 16 . . Part Studies Acquired 18 | . . . 3 . . . 3 . 1 . . . 2 . . . . 2 . 1 . . . . . 2 . . . . 1 . 2 . . 1 . . . . Parts Repaired 16 | . 2 . 2 . . . . . . . . . . . . . . . . 2 . . . . . 2 . . . . 1 . . . . 5 . 2 . . Time 599 | . 58 . 96 . . . . . . . . . . . . . . . . 63 . . . . . 106 . . . . 29 . . . . 188 . 59 . . Parts Recycled . | . . . . . . . . . . . . . . . . . . . . . . . . . . . . . . . . . . . . . . . . . Recycled Matter 9 | . . . . . . . . . . . . . . . . . . . . . . . . . . . . . . . . . 9 . . . . . . . Retrieved Matter 9 | . . . . . . . . . . . . . . . . . . . . . . . . . . . . . . . . . 9 . . . . . . . Retrieved Components . | . . . . . . . . . . . . . . . . . . . . . . . . . . . . . . . . . . . . . . . . . Parts Scanalyzed 19 | . . . 2 . . . 2 . 2 . . . 2 . . . . 1 . . . . . . . . . . . . 6 . . . . 3 . 1 . . Part Schematics Acquired 19 | . . . 2 . . . 2 . 2 . . . 2 . . . . 1 . . . . . . . . . . . . 6 . . . . 3 . 1 . . Parts Damaged 2 | . . . . . . . . . . . . . 1 . . . . . . . . . . . . . . . . . 1 . . . . . . . . . Bothacking | -11 -10 -10 -9 -9 -9 -8 -8 -8 -8 -8 -7 -7 -7 -7 -7 -7 -6 -6 -6 -6 -6 -6 -6 -6 -6 -5 -5 -5 -5 -4 -4 -4 -4 -4 -4 -3 -3 -2 -2 -1 ------------ Run | Yrd Mat Min Mat Min Exi Min Mat Gar Mat Gar Fac Was Fac Low Low Dat Pro Fac Was Fac Ext Cet Arc Hub Gar Fac Upp Upp War Pro Fac Was Fac Arm Lab Res Gar Res Gar Acc Used RIF Installer 5 | . . . . . . . . 1 . 1 . . . . . . . . . . . . . . 1 . . . . . . . . . . . 1 . 1 . Watcher Feeds 1 | . . . . . . . . . . 1 . . . . . . . . . . . . . . . . . . . . . . . . . . . . . . Alert ID Control 1 | . . . . . . . . . . . . . . . . . . . . . . . . . . . . . . . . . . . . . . . 1 . Program Shield 1 | . . . . . . . . . . . . . . . . . . . . . . . . . 1 . . . . . . . . . . . . . . . Autooverride 1 | . . . . . . . . . . . . . . . . . . . . . . . . . . . . . . . . . . . . . 1 . . . Robots Hacked 51 | . . . . . . . . . . 5 . . 2 . . . . 2 . 1 1 . . 2 . 3 . . . . 1 . 2 . . 3 12 1 16 . Non-combat 18 | . . . . . . . . . . . . . 2 . . . . 2 . 1 1 . . 2 . 2 . . . . 1 . 2 . . 3 1 1 . . Combat 33 | . . . . . . . . . . 5 . . . . . . . . . . . . . . . 1 . . . . . . . . . . 11 . 16 . Autooverrided 3 | . . . . . . . . . . . . . . . . . . . . . . . . . . . . . . . . . . . . . 1 . 2 . Robot Hacks Applied 55 | . . . . . . . . . . 5 . . 2 . . . . 2 . 1 1 . . 2 . 4 . . . . 1 . 3 . . 3 13 1 17 . parse_system 1 | . . . . . . . . . . . . . . . . . . . . . . . . . . . . . . . . . . . . . . . 1 . no_distress 2 | . . . . . . . . . . . . . . . . . . . . . . . . . . . . . . . . . 2 . . . . . . . find_chute 1 | . . . . . . . . . . . . . . . . . . . . . . . . . . . . . . . 1 . . . . . . . . . find_fabricator 2 | . . . . . . . . . . . . . . . . . . . . . . . . . . 1 . . . . . . 1 . . . . . . . drop_inventory 11 | . . . . . . . . . . . . . 1 . . . . 2 . 1 . . . 2 . 1 . . . . . . . . . 3 . 1 . . find_recycling 1 | . . . . . . . . . . . . . 1 . . . . . . . . . . . . . . . . . . . . . . . . . . . scatter_targeting 1 | . . . . . . . . . . . . . . . . . . . . . . . . . . . . . . . . . . . . . 1 . . . overload_power 1 | . . . . . . . . . . . . . . . . . . . . . . . . . . . . . . . . . . . . . 1 . . . amplify_resonance 8 | . . . . . . . . . . . . . . . . . . . . . . . . . . . . . . . . . . . . . 4 . 4 . overwrite_iff 5 | . . . . . . . . . . . . . . . . . . . . . . . . . . . . . . . . . . . . . 2 . 3 . streamctrl_high 2 | . . . . . . . . . . 1 . . . . . . . . . . . . . . . 1 . . . . . . . . . . . . . . formatsys_low 3 | . . . . . . . . . . . . . . . . . . . . . 1 . . . . 1 . . . . . . . . . . 1 . . . formatsys_high 17 | . . . . . . . . . . 4 . . . . . . . . . . . . . . . . . . . . . . . . . . 4 . 9 . Relay Couplers Released 77 | . . . . . . . . 9 . 17 . . . . . . . . . . . . . . 4 4 . . . . . . 2 . . . 16 . 25 . Ejected 4 | . . . . . . . . . . . . . . . . . . . . . . . . . . 4 . . . . . . . . . . . . . . Machine Destruction 73 | . . . . . . . . 9 . 17 . . . . . . . . . . . . . . 4 . . . . . . . 2 . . . 16 . 25 . Attached 22 | . . . . . . . . . . 4 1 . . . . . . . . . . . . . . 1 . . . . . . 1 . . . 6 . 8 1 Fabnet Peak Effective % . | . . . . . . . . . . . . . . . . . . . . . . . . . . . . . . . . . . . . . . . . . Robots Rewired 52 | . . . . . . . . . . 3 . . . . . . . . . . 18 . . . 3 . . . . . . . . 9 . . 3 . 16 . Allies Hacked 1 | . . . . . . . . . . 1 . . . . . . . . . . . . . . . . . . . . . . . . . . . . . . Hacks Repelled 1 | . . . . . . . . . . . . . . . . . . . . . . . . . . . . . . . . . . . . . 1 . . . Allies | -11 -10 -10 -9 -9 -9 -8 -8 -8 -8 -8 -7 -7 -7 -7 -7 -7 -6 -6 -6 -6 -6 -6 -6 -6 -6 -5 -5 -5 -5 -4 -4 -4 -4 -4 -4 -3 -3 -2 -2 -1 -------- Run | Yrd Mat Min Mat Min Exi Min Mat Gar Mat Gar Fac Was Fac Low Low Dat Pro Fac Was Fac Ext Cet Arc Hub Gar Fac Upp Upp War Pro Fac Was Fac Arm Lab Res Gar Res Gar Acc Total Allies 119 | . . . . . . . . . 3 8 . . 2 . . . . 2 . 4 29 . . 1 3 3 . . . . . 1 1 10 . 5 10 5 32 . Largest Group 22 | . . . . . . . . . 3 8 . . 1 . . . . 1 . 3 14 14 . 1 3 1 . . . . . 1 1 4 . 5 5 5 22 17 Highest-Rated Group 1312 | . . . . . . . . . 42 122 . . 26 . . . . 26 . 87 459 400 . 26 129 27 . . . . . 46 10 120 . 250 340 302 1312 947 Highest-Rated Ally 159 | . . . . . . . . . 16 31 . . 26 . . . . 26 . 29 159 31 . 26 43 27 . . . . . 46 10 48 . 56 99 99 95 69 Total Orders 15 | . . . . . . . . . . . . . . . . . . . . . . 2 . . 1 1 . . . . . . 2 6 . . 1 2 . . STAY 10 | . . . . . . . . . . . . . . . . . . . . . . . . . 1 . . . . . . . 1 6 . . 1 1 . . ROAM 1 | . . . . . . . . . . . . . . . . . . . . . . 1 . . . . . . . . . . . . . . . . . . FOLLOW 3 | . . . . . . . . . . . . . . . . . . . . . . 1 . . . . . . . . . . 1 . . . . 1 . . AID 1 | . . . . . . . . . . . . . . . . . . . . . . . . . . 1 . . . . . . . . . . . . . . Ally Attacks 497 | . . . . . . . . . 1 28 . . . . . . . . . 11 100 71 . . 11 . . . . . . . . 38 . 3 23 32 128 51 Total Damage 14260 | . . . . . . . . . 16 354 . . . . . . . . . 149 2514 1474 . . 268 . . . . . . . . 1124 . 179 577 736 5043 1826 Kills 74 | . . . . . . . . . . 4 . . . . . . . . . . 18 4 . . 3 . . . . . . . . 7 . 1 2 3 20 12 Allies Corrupted 6 | . . . . . . . . . . . . . 1 . . . . . . . . . . . . . . . . . . . . 2 . . 1 . 1 1 Allies Melted 2 | . . . . . . . . . . . . . . . . . . . . . . . . . . . . . . 1 . . . . . . . . 1 . Intel | -11 -10 -10 -9 -9 -9 -8 -8 -8 -8 -8 -7 -7 -7 -7 -7 -7 -6 -6 -6 -6 -6 -6 -6 -6 -6 -5 -5 -5 -5 -4 -4 -4 -4 -4 -4 -3 -3 -2 -2 -1 ------- Run | Yrd Mat Min Mat Min Exi Min Mat Gar Mat Gar Fac Was Fac Low Low Dat Pro Fac Was Fac Ext Cet Arc Hub Gar Fac Upp Upp War Pro Fac Was Fac Arm Lab Res Gar Res Gar Acc Active Infowar (turns) 12545 | 3 69 . . 2 . . . . . . . . 1010 92 101 30 154 603 29 664 720 82 215 285 637 1425 131 122 106 200 1054 16 850 819 147 593 806 666 761 153 Optics 827 | . . . . . . . . . . . . . . . . . . . . . . . . . . . . . . . 722 16 89 . . . . . . . Sensors 2 | . . . . 2 . . . . . . . . . . . . . . . . . . . . . . . . . . . . . . . . . . . . IFF 688 | . . . . . . . . . . . . . . . . . . . . . . . . . . . 119 87 106 186 190 . . . . . . . . . Zeronet 303 | . . . . . . . . . . . . . . . . . . . . . . . . . . . . . . . 303 . . . . . . . . . Terrain 72 | 3 69 . . . . . . . . . . . . . . . . . . . . . . . . . . . . . . . . . . . . . . . Structural 9940 | . . . . . . . . . . . . . 1010 92 101 30 154 603 29 664 720 82 215 285 637 1425 128 122 106 187 1054 16 847 819 21 593 . . . . Traps 42 | . . . . . . . . . . . . . . . . . . . . . . . . . . . . . . . 42 . . . . . . . . . Cloaking 5463 | . . . . . . . . . . . . . . . . . . . . . . . . . . . . . . . 987 16 850 817 147 593 740 666 495 152 Spoofing 2 | . . . . . . . . . . . . . . . . . . . . . . . . . . . . . . . . . . . . . . . 2 . Jamming 4016 | . . . . . . . . . . . . . . . . . . . . . . . . . . . . . . . . . 91 799 147 593 806 666 761 153 ECM 689 | . . . . . . . . . . . . . . . . . . . . . . . . . . . . . . . . . 147 . . . . 514 28 . Robot Analysis Total 11 | . 3 . . . . . 1 . . . . . . . . . . 1 . . . . . . . . . . . . . . 1 1 . 4 . . . . Derelict Logs Recovered 6 | . . . . 2 . . . . . . . . . 1 . . 1 . . . . . . . . . . . . 2 . . . . . . . . . . Drone Launches . | . . . . . . . . . . . . . . . . . . . . . . . . . . . . . . . . . . . . . . . . . Drone Recoveries . | . . . . . . . . . . . . . . . . . . . . . . . . . . . . . . . . . . . . . . . . . Exploration | -11 -10 -10 -9 -9 -9 -8 -8 -8 -8 -8 -7 -7 -7 -7 -7 -7 -6 -6 -6 -6 -6 -6 -6 -6 -6 -5 -5 -5 -5 -4 -4 -4 -4 -4 -4 -3 -3 -2 -2 -1 ------------- Run | Yrd Mat Min Mat Min Exi Min Mat Gar Mat Gar Fac Was Fac Low Low Dat Pro Fac Was Fac Ext Cet Arc Hub Gar Fac Upp Upp War Pro Fac Was Fac Arm Lab Res Gar Res Gar Acc Turns Passed 21986 | 82 1182 207 2123 260 276 527 731 612 859 1035 272 144 1445 92 101 30 154 678 29 664 720 253 297 287 639 1738 132 122 129 241 1114 16 850 819 147 593 806 666 761 153 Spaces Moved 27493 | 36 764 126 1146 174 204 353 364 311 376 455 156 84 2554 213 285 94 442 1354 108 1420 882 343 321 488 532 3156 398 297 133 501 1817 62 1914 955 197 940 857 1198 1142 341 Core 5 | 1 . . . . . . . . . . . . . . . . . . . . . . 1 . . . . . . . 3 . . . . . . . . . Treads . | . . . . . . . . . . . . . . . . . . . . . . . . . . . . . . . . . . . . . . . . . Legs . | . . . . . . . . . . . . . . . . . . . . . . . . . . . . . . . . . . . . . . . . . Wheels 4584 | 35 764 126 1146 174 204 353 364 311 376 455 156 84 36 . . . . . . . . . . . . . . . . . . . . . . . . . . . Hover 572 | . . . . . . . . . . . . . . . . . . . . . . . . . 83 . . . . . 489 . . . . . . . . . Flight 22332 | . . . . . . . . . . . . . 2518 213 285 94 442 1354 108 1420 882 343 320 488 449 3156 398 297 133 501 1325 62 1914 955 197 940 857 1198 1142 341 Fastest Speed 22 | 50 80 140 120 135 135 135 135 135 145 145 145 80 32 32 32 32 32 26 27 27 27 27 27 34 26 24 22 22 26 22 22 25 25 28 28 27 27 27 27 27 Average Speed 46 | 79 102 140 134 135 135 135 135 136 145 145 152 144 33 32 32 32 32 26 27 27 27 27 52 34 52 28 26 27 29 28 29 25 26 28 28 27 32 27 28 27 Slowest Speed 435 | 80 140 140 140 135 135 135 140 145 145 145 155 165 175 32 32 32 32 27 27 27 27 27 400 34 435 103 29 100 101 34 350 25 28 106 28 29 104 27 104 27 Overloaded Moves . | . . . . . . . . . . . . . . . . . . . . . . . . . . . . . . . . . . . . . . . . . Propulsion Burnouts . | . . . . . . . . . . . . . . . . . . . . . . . . . . . . . . . . . . . . . . . . . Robots Hopped 90 | . . . . . . . . . . . . . 10 . . . . 5 3 12 2 . . 6 . 25 . . . 1 1 1 15 . . 5 1 3 . . Potential Cave-ins 15 | . . . . . . . . . . . . . . . . . . . . . . . . . 13 2 . . . . . . . . . . . . . . Cave-ins Triggered . | . . . . . . . . . . . . . . . . . . . . . . . . . . . . . . . . . . . . . . . . . Exploration Rate (%) 57 | 3 95 22 94 28 59 86 38 42 35 61 9 73 66 40 53 71 70 54 77 55 78 69 98 56 28 88 65 49 16 70 50 90 59 61 94 40 70 33 83 13 Regions Visited 40 Branch Regions 18 Pre-discovered Areas 14 | . 1 . 2 . 1 . . . . . . . . 1 . 1 . 1 . 3 . . . . . 3 . . . . . . . 1 . . . . . . Known Exits Taken 19 | . . 1 1 . . 1 1 . 1 . . . 1 . . . 1 . . 1 1 1 1 1 . 1 1 . . 1 . . 1 . 1 1 . 1 . . Unknown Exits Taken 10 | 1 1 . . 1 1 . . . . . . . . 1 1 1 . . . . . . . . . . . 1 1 . . . . 1 . . . . . . Scrap Searched 14 | . . . . . . 1 . . . . . . . 2 4 . 2 . . . . . . . . . 3 . . 2 . . . . . . . . . . Spaces Dug 498 | . . . . . . . 11 . 3 2 4 . 30 2 2 . 3 36 . 53 4 . . 11 110 80 4 3 2 10 34 . 39 4 . 11 11 10 15 4 Terrain Destroyed 1121 | . . 11 76 23 . 42 49 22 24 6 4 . 30 2 2 . 3 36 . 99 107 . . 16 163 163 4 5 5 38 34 . 39 4 . 11 74 10 15 4 Melee 319 | . . . . . . . 3 . 3 2 4 . 30 2 2 . 3 21 . 28 4 . . 7 12 65 3 1 2 2 34 . 36 4 . 11 11 10 15 4 Projectile 60 | . . . . . . . . . . . . . . . . . . . . . . . . 9 13 18 1 4 3 9 . . 3 . . . . . . . AOE 742 | . . 11 76 23 . 42 46 22 21 4 . . . . . . . 15 . 71 103 . . . 138 80 . . . 27 . . . . . . 63 . . . Terrain Rammed . | . . . . . . . . . . . . . . . . . . . . . . . . . . . . . . . . . . . . . . . . . Walls Destroyed . | . . . . . . . . . . . . . . . . . . . . . . . . . . . . . . . . . . . . . . . . . Machines Disabled . | . . . . . . . . . . . . . . . . . . . . . . . . . . . . . . . . . . . . . . . . . Actions | -11 -10 -10 -9 -9 -9 -8 -8 -8 -8 -8 -7 -7 -7 -7 -7 -7 -6 -6 -6 -6 -6 -6 -6 -6 -6 -5 -5 -5 -5 -4 -4 -4 -4 -4 -4 -3 -3 -2 -2 -1 --------- Run | Yrd Mat Min Mat Min Exi Min Mat Gar Mat Gar Fac Was Fac Low Low Dat Pro Fac Was Fac Ext Cet Arc Hub Gar Fac Upp Upp War Pro Fac Was Fac Arm Lab Res Gar Res Gar Acc Total 34401 | 60 1005 137 1552 187 205 393 507 433 559 716 182 97 3073 232 291 93 449 1619 104 1612 1309 453 403 554 780 3778 417 323 201 573 2277 60 2150 1487 278 1235 1264 1507 1462 384 Wait 4360 | 1 97 . 212 3 . 34 47 38 79 34 4 . 407 14 4 . 1 174 . 150 324 51 28 24 84 441 7 6 39 33 295 . 175 495 60 251 264 280 174 30 Move 27288 | 35 763 125 1145 173 203 352 364 310 375 454 156 83 2534 212 284 93 441 1344 102 1397 877 342 320 478 531 3109 397 296 132 498 1815 59 1884 954 196 929 854 1191 1141 340 Hop 79 | . . . . . . . . . . . . . 9 . . . . 5 2 10 2 . . 4 . 21 . . . 1 1 1 14 . . 5 1 3 . . Pick Up 163 | 4 22 1 19 . 1 1 12 10 7 15 3 1 11 . . . . 4 . 2 . 3 . . . 13 1 . . . 8 . . 2 4 9 3 3 4 . Fast Attach 177 | 6 3 . 9 . . . 2 . 4 1 1 . 21 1 . . 1 9 . 2 7 1 7 . 6 15 . 1 . 7 28 . 9 4 5 5 10 2 10 . Attach 120 | 1 3 . 9 . . . 9 3 3 14 1 1 3 . . . . 3 . 1 1 3 . 5 5 14 3 3 3 5 9 . . 2 1 4 4 2 2 3 Detach 71 | . . . 6 . . . . . 3 2 . . 3 . . . . 1 . 1 1 2 1 5 6 9 2 4 3 4 5 . . 2 4 3 3 . 1 . Swap 238 | . 13 1 30 6 . . 12 10 12 15 8 2 5 . . . 2 3 . 7 5 2 4 4 7 9 2 1 . 2 13 . 4 7 1 1 29 3 16 2 Drop 245 | . 12 . 33 . 1 1 12 8 13 6 4 1 25 1 . . 1 10 . 2 5 4 8 . 3 12 1 . . 5 30 . 9 1 2 6 11 1 16 1 Fire 689 | 13 79 10 89 5 . 5 45 26 60 40 1 9 4 . . . . 2 . 5 15 34 16 9 75 39 1 10 18 13 5 . 5 . . . 39 . 17 . Melee 692 | . . . . . . . 4 12 3 24 4 . 47 4 3 . 3 32 . 35 48 11 19 12 25 95 3 2 2 5 62 . 50 20 5 22 41 15 76 8 Ram . | . . . . . . . . . . . . . . . . . . . . . . . . . . . . . . . . . . . . . . . . . Kick . | . . . . . . . . . . . . . . . . . . . . . . . . . . . . . . . . . . . . . . . . . Crush . | . . . . . . . . . . . . . . . . . . . . . . . . . . . . . . . . . . . . . . . . . Escape Stasis 117 | . . . . . . . . 16 . 48 . . . . . . . . . . 23 . . . 30 . . . . . . . . . . . . . . . Rewire 78 | . . . . . . . . . . 63 . . . . . . . . . . 1 . . . 8 1 . . . . . . . . . . 2 . 3 . Trap 71 | . 13 . . . . . . . . . . . 4 . . . . 32 . . . . . . . . . . 4 . 6 . . . . . 3 7 2 . Miscellaneous 13 | . . . . . . . . . . . . . . . . . . . . . . . . 13 . . . . . . . . . . . . . . . . Route ------- -11/Scrapyard -10/Materials (discovered 6 exits: *Mat x3 / [*Min x2] / Sub) -10/Mines (discovered 2 exits: *Mat x2) -9/Materials (discovered 5 exits: *Mat x3 / *Min x2) -9/Mines -9/Exiles -8/Mines (discovered 2 exits: *Mat x2) -8/Materials (discovered 2 exits: *Fac / Gar) -8/Garrison (discovered 3 exits: *Mat x3) -8/Materials -8/Garrison (discovered 2 exits: *Fac x2) -7/Factory -7/Waste -7/Factory (discovered 5 exits: *Fac x3 / *Low x2) -7/Lower Caves -7/Lower Caves (discovered 2 exits: *Fac / *Dat) -7/Data Miner -6/Proximity Caves -6/Factory (discovered 7 exits: *Fac x3 / *Low x2 / Ext x2) -6/Waste -6/Factory (discovered 7 exits: *Fac x4 / *Low / *Ext x2) -6/Extension (discovered 2 exits: *Fac / *Cet) -6/Cetus (discovered 2 exits: *Fac / *Arc) -6/Archives (discovered 3 exits: *Fac / *Hub x2) -6/Hub_04(d) (discovered 2 exits: Fac / Gar) -6/Garrison -5/Factory (discovered 6 exits: *Fac x4 / *Upp x2) -5/Upper Caves -5/Upper Caves -5/Warlord -4/Proximity Caves -4/Factory (discovered 7 exits: *Res x4 / *Upp x2 / Arm) -4/Waste -4/Factory (discovered 4 exits: Res / *Upp x2 / *Arm) -4/Armory (discovered 3 exits: Res x2 / [*Lab]) -4/Lab -3/Research (discovered 6 exits: Res x2 / Qua x2 / Gar / Gar) -3/Garrison (discovered 3 exits: *Res x3) -2/Research (discovered 6 exits: *Acc x3 / Tes x2 / Gar) -2/Garrison (discovered 3 exits: *Acc x3) -1/Access To Epsilon Eridani History --------- Turn | Location | Event 43 | -11/Scrapyard | Discovered new exit (range 13) 83 | -11/Scrapyard | Entered Materials 186 | -10/Materials | Discovered new exit (range 12) 274 | -10/Materials | Discovered new exit (range 16) 318 | -10/Materials | Build established: Mutant 361 | -10/Materials | Discovered new exit (range 6) 415 | -10/Materials | Discovered new exit (range 5) 898 | -10/Materials | Repaired Med. Laser 932 | -10/Materials | Repaired Disposable Heat Sink 1073 | -10/Materials | Learned location of 1 exit from Recycling 1117 | -10/Materials | Learned location of Storage (-7) 1195 | -10/Materials | Identified exit to Subcaves 1195 | -10/Materials | Identified exit to Materials 1203 | -10/Materials | Learned location of 1 exit from Recycling 1249 | -10/Materials | Learned 2 Storage zone layouts 1265 | -10/Materials | Entered Mines 1268 | -10/Mines | Core integrity fell below 50% 1327 | -10/Mines | Discovered exit to Materials (range 6) 1369 | -10/Mines | Discovered exit to Materials (range 5) 1426 | -10/Mines | Core integrity fell below 20% 1472 | -10/Mines | Entered Materials 1472 | -9/Materials | Evolved 2 slots: Utility x1, Weapon x1 1784 | -9/Materials | Build established: Scavenger-Gunner 1896 | -9/Materials | Central database locked down 1940 | -9/Materials | Discovered new exit (range 3) 2139 | -9/Materials | Identified exit to Mines 2191 | -9/Materials | Discovered new exit (range 17) 2395 | -9/Materials | Build established: Tank 2514 | -9/Materials | Destroyed 8 combat bots 2663 | -9/Materials | Learned location of Zion (-6) 2742 | -9/Materials | Identified exit to Materials 3469 | -9/Materials | Repaired Cooling System 3535 | -9/Materials | Repaired Broken Adv. Beam Cannon 3595 | -9/Materials | Entered Mines 3614 | -9/Mines | Learned Materials interactive machine intel 3684 | -9/Mines | Found a damaged Exp. Sensor Array with a note attached 3687 | -9/Mines | Found Prototype Device 3687 | -9/Mines | Identified Exp. Sensor Array 3749 | -9/Mines | Deemed a non-threat by the Exiles lab entrance 3849 | -9/Mines | Discovered new exit (range 5) 3855 | -9/Mines | Entered Exiles 3887 | -9/Exiles | Met 8R-AWN 3912 | -9/Exiles | Met EX-HEX 3949 | -9/Exiles | Met EX-BIN 3963 | -9/Exiles | Aligned with FarCom system 3965 | -9/Exiles | Given EX-Vault access code 3996 | -9/Exiles | Opened EX-Vault 4006 | -9/Exiles | Found Gui. Plasma Cannon 4031 | -9/Exiles | Warned to stay clear of 0b10 Research branches 4072 | -9/Exiles | Met EX-DEC 4120 | -9/Exiles | Discovered new exit (range 10) 4131 | -9/Exiles | Left Exiles lab with Gui. Plasma Cannon 4131 | -9/Exiles | Entered Mines 4299 | -8/Mines | Discovered exit to Materials (range 9) 4429 | -8/Mines | Build established: Skirmisher 4546 | -8/Mines | Discovered exit to Materials (range 11) 4658 | -8/Mines | Entered Materials 4658 | -8/Materials | Evolved 2 slots: Utility x2 4659 | -8/Materials | Loaded intel: 19 interactive machine locations 5061 | -8/Materials | Destroyed 8 combat bots 5063 | -8/Materials | Lost 4 parts (1n1u2w) 5071 | -8/Materials | Discovered new exit (range 15) 5116 | -8/Materials | Build established: Tank 5389 | -8/Materials | Identified exit to Garrison 5389 | -8/Materials | Entered Garrison 5486 | -8/Garrison | Build established: Mutant 5488 | -8/Garrison | Garrison Relay disabled 5500 | -8/Garrison | Discovered new exit (range 79) 5500 | -8/Garrison | Discovered new exit (range 84) 5500 | -8/Garrison | Discovered new exit (range 32) 5571 | -8/Garrison | Triggered checkpoint 5605 | -8/Garrison | Triggered checkpoint 5610 | -8/Garrison | Lost 3 parts (1p1n1w) 5745 | -8/Garrison | Triggered checkpoint 5787 | -8/Garrison | Garrison Relay disabled 5808 | -8/Garrison | Installed Relay Interface Framework 5888 | -8/Garrison | Build established: Tank 6001 | -8/Garrison | Entered Materials 6463 | -8/Materials | Garrison activated, responded to threat 6479 | -8/Materials | Build established: Scavenger-Skirmisher 6859 | -8/Materials | Identified exit to Garrison 6860 | -8/Materials | Entered Garrison 6860 | -8/Garrison | Accompanied by 3 allies 6893 | -8/Garrison | Garrison Relay disabled 6936 | -8/Garrison | Triggered checkpoint 6947 | -8/Garrison | Garrison Relay disabled 6986 | -8/Garrison | Triggered checkpoint 7020 | -8/Garrison | Triggered checkpoint 7079 | -8/Garrison | Lost 8 allies 7102 | -8/Garrison | Lost 6 parts (1p2n3w) 7128 | -8/Garrison | Triggered checkpoint 7228 | -8/Garrison | Discovered new exit (range 10) 7333 | -8/Garrison | Garrison Relay disabled 7428 | -8/Garrison | Build established: Scavenger-Mutant 7584 | -8/Garrison | Core integrity fell below 50% 7697 | -8/Garrison | Discovered new exit (range 10) 7819 | -8/Garrison | Expanded RIF knowledge: Watcher Feeds 7856 | -8/Garrison | Garrison Relay disabled 7895 | -8/Garrison | Entered Factory 7895 | -7/Factory | Evolved 2 slots: Power x1, Utility x1 7896 | -7/Factory | Identified exit to Storage 8167 | -7/Factory | Sucked down chute 8167 | -7/Factory | Entered Waste 8172 | -7/Waste | Spotted C-40 Crusher 8182 | -7/Waste | EMP discharged 8182 | -7/Waste | System corruption reached 10% 8216 | -7/Waste | Spotted C-40 Crusher 8254 | -7/Waste | Spotted C-40 Crusher 8282 | -7/Waste | EMP discharged 8284 | -7/Waste | Spotted C-40 Crusher 8284 | -7/Waste | Spotted C-40 Crusher 8295 | -7/Waste | Crushed by Compactor (1 part destroyed, 2 dropped) 8297 | -7/Waste | Discovered new exit (range 14) 8298 | -7/Waste | Crushed by Compactor (1 part destroyed, 1 dropped) 8301 | -7/Waste | Crushed by Compactor (1 part destroyed, 2 dropped) 8311 | -7/Waste | Entered Factory 8332 | -7/Factory | Lost 4 parts (1p1u2w) 8625 | -7/Factory | Watched by a mysterious "MATRIX" hacker. 8680 | -7/Factory | Discovered new exit (range 15) 8816 | -7/Factory | Discovered new exit (range 25) 8894 | -7/Factory | Central database locked down 8908 | -7/Factory | Identified exit to Factory 9035 | -7/Factory | Discovered exit to Factory (range 7) 9035 | -7/Factory | Allied Derelicts emerged from ambush trap array 9081 | -7/Factory | Build established: Hacker-Sprinter 9205 | -7/Factory | Discovered new exit (range 5) 9358 | -7/Factory | Identified exit to Lower Caves 9505 | -7/Factory | Learned 2 Hub_04(d) zone layouts 9647 | -7/Factory | Loaded intel: 77 trap records 9753 | -7/Factory | Learned location of 1 exit from Cetus 9756 | -7/Factory | Entered Lower Caves 9779 | -7/Lower Caves | Attracted the attention of an 0b10 checkpoint 9842 | -7/Lower Caves | Discovered new exit (range 10) 9848 | -7/Lower Caves | Entered another Lower Caves area 9850 | -7/Lower Caves | Discovered exit to Factory (range 7) 9925 | -7/Lower Caves | Entered a destroyed Warlord outpost 9938 | -7/Lower Caves | Discovered new exit (range 12) 9949 | -7/Lower Caves | Entered Data Miner 9949 | -7/Data Miner | Discovered new exit (range 6) 9956 | -7/Data Miner | Met Data Miner 9961 | -7/Data Miner | Learned location of Section 7 (-2) 9961 | -7/Data Miner | Acquired the access code to Warlord's prototype stash 9967 | -7/Data Miner | Received God Mode back door access code from Data Miner 9979 | -7/Data Miner | Entered Proximity Caves 10012 | -6/Proximity Caves | Found DCF Scrap (14 items) 10124 | -6/Proximity Caves | Learned Factory trap positions 10129 | -6/Proximity Caves | Discovered exit to Factory (range 5) 10133 | -6/Proximity Caves | Entered Factory 10133 | -6/Factory | Evolved 2 slots: Propulsion x2 10134 | -6/Factory | Loaded intel: 108 trap records 10230 | -6/Factory | P-60 Hacker assimilated allied Administrator 5a 10376 | -6/Factory | Discovered new exit (range 10) 10416 | -6/Factory | Fabricated Biomechanical Wings (x1) 10572 | -6/Factory | Incoming investigation squad redirected 10574 | -6/Factory | Fabricated Greatsword (x2) 10662 | -6/Factory | Identified exit to Lower Caves 10662 | -6/Factory | Identified exit to Extension 10666 | -6/Factory | Discovered new exit (range 26) 10686 | -6/Factory | Learned Extension terminal intel 10710 | -6/Factory | Found Unknown Protection 10710 | -6/Factory | Identified Hvy. Reflective Plating 10730 | -6/Factory | Loaded intel: 6 repair station locations 10763 | -6/Factory | Learned location of Upper Caves (-4) 10785 | -6/Factory | Identified exit to Factory 10796 | -6/Factory | Learned 2 Extension zone layouts 10797 | -6/Factory | Learned Extension emergency access door positions 10807 | -6/Factory | Learned location of 2 exits from Archives 10811 | -6/Factory | Manually triggered Chute Trap 10811 | -6/Factory | Sucked down chute 10811 | -6/Factory | Entered Waste 10815 | -6/Waste | Spotted C-40 Crusher 10815 | -6/Waste | Spotted C-40 Crusher 10815 | -6/Waste | Spotted C-40 Crusher 10824 | -6/Waste | Spotted C-40 Crusher 10826 | -6/Waste | EMP discharged 10833 | -6/Waste | Spotted C-40 Crusher 10835 | -6/Waste | Spotted C-40 Crusher 10836 | -6/Waste | Discovered new exit (range 16) 10840 | -6/Waste | Entered Factory 10908 | -6/Factory | Spotted B-75 Beast 10947 | -6/Factory | Repaired Imp. Utility Shielding 11029 | -6/Factory | Discovered exit to Factory (range 5) 11044 | -6/Factory | Targeted by mysterious "MATRIX" hacker. 11082 | -6/Factory | Discovered exit to Factory (range 8) 11147 | -6/Factory | Discovered exit to Extension (range 13) 11170 | -6/Factory | Discovered exit to Factory (range 9) 11182 | -6/Factory | Learned Hub_04(d) trap positions 11228 | -6/Factory | Learned location of Warlord (-5) 11243 | -6/Factory | Discovered exit to Factory (range 2) 11265 | -6/Factory | Learned location of Extension (-6) 11294 | -6/Factory | Incoming investigation squad redirected 11297 | -6/Factory | Discovered exit to Lower Caves (range 26) 11313 | -6/Factory | Repaired Hvy. Rocket Launcher+ 11333 | -6/Factory | Learned location of 1 exit from Extension 11387 | -6/Factory | Fabricated Plasma Cutter (x2) 11395 | -6/Factory | Incoming investigation squad redirected 11441 | -6/Factory | Learned 2 Upper Caves zone layouts 11504 | -6/Factory | Entered Extension 11506 | -6/Extension | Identified exit to Cetus 11508 | -6/Extension | Loaded intel: 13 terminal locations 11711 | -6/Extension | Rescued a captive Derelict 11713 | -6/Extension | Rescued a captive Derelict 11771 | -6/Extension | Rescued A7 11801 | -6/Extension | Lost 6 allies 11814 | -6/Extension | Rescued a captive Derelict 11907 | -6/Extension | Spotted B-75 Beast 11947 | -6/Extension | Spotted B-75 Beast 11986 | -6/Extension | Destroyed B-75 Beast 12005 | -6/Extension | Rescued a captive Derelict 12020 | -6/Extension | Rescued a captive Derelict 12021 | -6/Extension | Rescued a captive Derelict 12049 | -6/Extension | Extracted ID and sensor layout for unrecognized location from A7's data core 12086 | -6/Extension | Lost 4 allies 12092 | -6/Extension | Rescued a captive Derelict 12092 | -6/Extension | Rescued a captive Derelict 12110 | -6/Extension | Rescued a captive Derelict 12224 | -6/Extension | Entered Cetus 12224 | -6/Cetus | Accompanied by 14 allies 12225 | -6/Cetus | Identified exit to Archives 12241 | -6/Cetus | Spotted Cetus Guard 12241 | -6/Cetus | Spotted Cetus Guard 12242 | -6/Cetus | Spotted Cetus Guard 12242 | -6/Cetus | Spotted Cetus Guard 12252 | -6/Cetus | Allies destroyed Cetus Guard 12253 | -6/Cetus | Destroyed Cetus Guard 12257 | -6/Cetus | Destroyed Cetus Guard 12264 | -6/Cetus | Allies destroyed Cetus Guard 12292 | -6/Cetus | Lost 6 allies 12317 | -6/Cetus | Destroyed Cetus Guard 12329 | -6/Cetus | Spotted Cetus Guard 12329 | -6/Cetus | Spotted Cetus Guard 12351 | -6/Cetus | Spotted Cetus Guard 12353 | -6/Cetus | Allies destroyed Cetus Guard 12386 | -6/Cetus | Destroyed Cetus Guard 12392 | -6/Cetus | Lost 8 allies 12401 | -6/Cetus | Destroyed Cetus Guard 12447 | -6/Cetus | Met Revision 17 12477 | -6/Cetus | Entered Archives 12478 | -6/Archives | Identified exit to Hub_04(d) 12692 | -6/Archives | Discovered exit to Factory (range 15) 12774 | -6/Archives | Entered Hub_04(d) 12776 | -6/Hub_04(d) | Loaded intel: 23 trap records 12786 | -6/Hub_04(d) | Build established: Hacker-Mutant 12924 | -6/Hub_04(d) | Discovered exit to Factory (range 15) 12958 | -6/Hub_04(d) | Network Hub disabled 12985 | -6/Hub_04(d) | Network Hub disabled 13018 | -6/Hub_04(d) | Spotted Lightning 13024 | -6/Hub_04(d) | Spotted Lightning 13028 | -6/Hub_04(d) | Network Hub disabled 13061 | -6/Hub_04(d) | Identified exit to Garrison 13061 | -6/Hub_04(d) | Entered Garrison 13063 | -6/Garrison | Triggered checkpoint 13075 | -6/Garrison | Triggered checkpoint 13079 | -6/Garrison | Triggered checkpoint 13109 | -6/Garrison | Triggered checkpoint 13199 | -6/Garrison | Lost 4 parts (2n1u1w) 13458 | -6/Garrison | Learned Factory security intel 13538 | -6/Garrison | Garrison Relay disabled 13688 | -6/Garrison | Expanded RIF knowledge: Program Shield 13696 | -6/Garrison | Discovered exit to Factory (range 8) 13700 | -6/Garrison | Entered Factory 13700 | -5/Factory | Evolved 2 slots: Propulsion x2 13701 | -5/Factory | Identified exit to Upper Caves 13721 | -5/Factory | Discovered new exit (range 8) 13861 | -5/Factory | Repaired Phasing Sabre 13985 | -5/Factory | Build established: Hacker-Sprinter 13986 | -5/Factory | Learned Research emergency access door positions 14000 | -5/Factory | Search patrols dispatched 14046 | -5/Factory | Learned 8 Research zone layouts 14095 | -5/Factory | Identified exit to Factory 14168 | -5/Factory | Learned location of 1 exit from Proximity Caves 14223 | -5/Factory | Learned location of 1 exit from Research 14266 | -5/Factory | Learned Research recycling unit intel 14300 | -5/Factory | Search patrols dispatched 14600 | -5/Factory | Search patrols dispatched 14632 | -5/Factory | Repaired Broken Phasing Sabre 14650 | -5/Factory | Discovered exit to Factory (range 5) 14875 | -5/Factory | Lost 4 parts (2p1n1w) 15438 | -5/Factory | Entered Upper Caves 15439 | -5/Upper Caves | Identified exit to Upper Caves 15479 | -5/Upper Caves | Spotted B-75 Beast 15570 | -5/Upper Caves | Entered another Upper Caves area 15628 | -5/Upper Caves | Discovered new exit (range 7) 15692 | -5/Upper Caves | Entered Warlord 15707 | -5/Warlord | Discovered new exit (range 15) 15714 | -5/Warlord | Opened side exit 15718 | -5/Warlord | RIF detected upon attempting to enter Warlord's base 15718 | -5/Warlord | Attacked by Warlord forces 15794 | -5/Warlord | Core integrity fell below 50% 15821 | -5/Warlord | Entered Proximity Caves 15905 | -4/Proximity Caves | Lost 3 parts (1n2w) 15961 | -4/Proximity Caves | Spotted B-86 Titan 16016 | -4/Proximity Caves | Learned Research terminal intel 16062 | -4/Proximity Caves | Entered Factory 16062 | -4/Factory | Evolved 2 slots: Utility x2 16110 | -4/Factory | Discovered new exit (range 15) 16289 | -4/Factory | Discovered new exit (range 10) 16321 | -4/Factory | Central database locked down 16386 | -4/Factory | Gui. Plasma Cannon suddenly broke down 16413 | -4/Factory | Destroyed CY-PHR 16425 | -4/Factory | Lost 11 parts (2p6n1u2w) 16428 | -4/Factory | Found Prototype Special Weapon 16428 | -4/Factory | Identified CY-PHR's Mindspike 16432 | -4/Factory | Found Prototype Device 16432 | -4/Factory | Identified Exp. Phase Shifter 16442 | -4/Factory | Found Prototype Device 16442 | -4/Factory | Identified Exp. Cloaking Device 16445 | -4/Factory | Found Prototype Processor 16445 | -4/Factory | Identified Zeronet Interface 16459 | -4/Factory | Found Prototype Hackware 16459 | -4/Factory | Identified Ghost Barrier 16584 | -4/Factory | Repaired Plasma Sword 16827 | -4/Factory | Discovered new exit (range 12) 16853 | -4/Factory | Identified exit to Upper Caves 16853 | -4/Factory | Identified exit to Armory 16853 | -4/Factory | Identified exit to Research 16887 | -4/Factory | Build established: Hacker-Ninja 17022 | -4/Factory | Learned 2 Upper Caves zone layouts 17099 | -4/Factory | Learned 2 Proximity Caves zone layouts 17176 | -4/Factory | Manually triggered Chute Trap 17176 | -4/Factory | Sucked down chute 17176 | -4/Factory | Entered Waste 17177 | -4/Waste | Met a frightened Derelict 17181 | -4/Waste | Spotted C-40 Crusher 17182 | -4/Waste | Spotted C-40 Crusher 17183 | -4/Waste | Spotted C-40 Crusher 17185 | -4/Waste | Spotted C-40 Crusher 17185 | -4/Waste | Spotted C-40 Crusher 17186 | -4/Waste | Discovered new exit (range 22) 17188 | -4/Waste | Spotted C-40 Crusher 17191 | -4/Waste | EMP discharged 17192 | -4/Waste | Entered Factory 17265 | -4/Factory | System corruption reached 10% 17367 | -4/Factory | Fabricated Adv. System Restoration Module? 17584 | -4/Factory | Build established: Hacker-Sprinter 17605 | -4/Factory | Discovered exit to Upper Caves (range 27) 17802 | -4/Factory | Spotted B-86 Titan 17905 | -4/Factory | Central database locked down 18039 | -4/Factory | Learned Quarantine garrison access intel 18042 | -4/Factory | Entered Armory 18337 | -4/Armory | Incoming investigation squad redirected 18381 | -4/Armory | Fabricated Lrg. Storage Unit (x1) 18397 | -4/Armory | Lost 4 allies 18566 | -4/Armory | Fabricated Field Propulsion Array (x1) 18599 | -4/Armory | Discovered new exit (range 5) 18651 | -4/Armory | Discovered exit to Research (range 9) 18692 | -4/Armory | Learned Testing security intel 18768 | -4/Armory | Learned Factory scanalyzer intel 18772 | -4/Armory | Lost 3 allies 18792 | -4/Armory | Learned 2 Proximity Caves zone layouts 18805 | -4/Armory | Learned 4 Research zone layouts 18806 | -4/Armory | Learned location of 1 exit from Armory 18834 | -4/Armory | Learned location of 1 exit from Armory 18861 | -4/Armory | Learned location of 1 exit from Armory 18861 | -4/Armory | Entered Lab 18861 | -4/Lab | Discovered exit to Research (range 10) 18865 | -4/Lab | Hidden lab's door opened automatically 18865 | -4/Lab | Sensor layout match revealed 18866 | -4/Lab | Gained access to the hidden lab's interior 18871 | -4/Lab | Found Alien Artifact 18877 | -4/Lab | Found Alien Artifact 18882 | -4/Lab | Found Alien Artifact 18882 | -4/Lab | Identified Integrated Reactor 18882 | -4/Lab | Installed Integrated Reactor, increased core energy generation (+10) 18892 | -4/Lab | Found Alien Artifact 18892 | -4/Lab | Identified Core Regenerator 18892 | -4/Lab | Used Core Regenerator, restored core integrity (+287) 18911 | -4/Lab | Found Prototype Energy Cannon 18911 | -4/Lab | Identified Potential Cannon 18913 | -4/Lab | Found Prototype Energy Gun 18913 | -4/Lab | Identified Tachyon Dispersion Ray 18916 | -4/Lab | Found Prototype Protection 18916 | -4/Lab | Identified Exp. Powered Armor 18919 | -4/Lab | Found Prototype Hackware 18919 | -4/Lab | Identified Deep Network Scanner 18981 | -4/Lab | Found Prototype Special Weapon 19008 | -4/Lab | Entered Research 19008 | -3/Research | Evolved 2 slots: Utility x2 19009 | -3/Research | Identified exit to Quarantine 19012 | -3/Research | Loaded intel: 26 terminal locations 19013 | -3/Research | Loaded intel: 5 recycling unit locations 19075 | -3/Research | Repaired Centrium Greatsword 19110 | -3/Research | Repaired Mic. Antimatter Reactor+ 19146 | -3/Research | Repaired Mic. Antimatter Reactor+ 19166 | -3/Research | Found Adv. Micro-nuke Launcher 19191 | -3/Research | Build established: Wizard-Sprinter 19208 | -3/Research | Revision forces began assault on 0b10 19230 | -3/Research | Repaired Adv. Datajack 19239 | -3/Research | Met up with Revision 17++ 19272 | -3/Research | Repaired Exp. Propulsion Shielding 19299 | -3/Research | Found Prototype Device 19371 | -3/Research | Learned Quarantine garrison access intel 19389 | -3/Research | Identified exit to Garrison 19393 | -3/Research | Identified Transdimensional Reconstructor 19393 | -3/Research | Identified Adv. EM Shield 19393 | -3/Research | Identified Gui. Remote Datajack 19400 | -3/Research | Central database locked down 19407 | -3/Research | Identified exit to Research 19434 | -3/Research | Learned Access garrison access intel 19451 | -3/Research | Learned Testing emergency access door positions 19460 | -3/Research | Learned Research emergency access door positions 19467 | -3/Research | Identified exit to Garrison 19471 | -3/Research | Learned Access recycling unit intel 19494 | -3/Research | Found Prototype Processor 19496 | -3/Research | Identified Spectral Analyzer 19601 | -3/Research | Entered Garrison 19601 | -3/Garrison | Accompanied by 3 allies 19684 | -3/Garrison | Phase Generator disabled 19736 | -3/Garrison | QS Assembler disabled 19743 | -3/Garrison | Found Prototype Device 19743 | -3/Garrison | Identified Exp. Thermal Shield 19760 | -3/Garrison | Found Prototype Device 19760 | -3/Garrison | Identified Exp. Shield Generator 19801 | -3/Garrison | Triggered checkpoint 19806 | -3/Garrison | Garrison Relay disabled 19831 | -3/Garrison | Triggered checkpoint 19862 | -3/Garrison | Triggered checkpoint 19895 | -3/Garrison | Triggered checkpoint 19912 | -3/Garrison | Garrison Relay disabled 19918 | -3/Garrison | Discovered exit to Research (range 10) 19927 | -3/Garrison | Expanded RIF knowledge: Autooverride 20045 | -3/Garrison | Triggered checkpoint 20053 | -3/Garrison | Discovered exit to Research (range 59) 20053 | -3/Garrison | Discovered exit to Research (range 18) 20053 | -3/Garrison | Discovered exit to Research (range 45) 20053 | -3/Garrison | Learned Research security intel 20057 | -3/Garrison | Triggered checkpoint 20160 | -3/Garrison | Garrison Relay disabled 20330 | -3/Garrison | Garrison Relay disabled 20398 | -3/Garrison | Rewired Striker 20399 | -3/Garrison | Rewired Striker 20407 | -3/Garrison | Entered Research 20407 | -2/Research | Accompanied by 4 allies 20407 | -2/Research | Evolved 2 slots: Utility x2 20408 | -2/Research | Identified exit to Testing 20559 | -2/Research | Fabricated ECM Suite (x2) 20585 | -2/Research | Fabricated Exp. Propulsion Shielding (x1) 20596 | -2/Research | Identified exit to Access 20669 | -2/Research | Repaired Exp. Propulsion Shielding? 20744 | -2/Research | Repaired Centrium Greatsword? 20800 | -2/Research | Identified exit to Garrison 20886 | -2/Research | Learned 4 Access zone layouts 20924 | -2/Research | Fabricated Adv. Quantum Shading Machine (x1) 20944 | -2/Research | Learned Access repair station intel 20993 | -2/Research | Loaded intel: 24 terminal locations 21034 | -2/Research | Learned location of 1 exit from Research 21066 | -2/Research | Learned Access trap positions 21073 | -2/Research | Entered Garrison 21073 | -2/Garrison | Accompanied by 4 allies 21087 | -2/Garrison | Spotted B-75 Beast 21090 | -2/Garrison | Discovered exit to Access (range 44) 21090 | -2/Garrison | Discovered exit to Access (range 56) 21090 | -2/Garrison | Discovered exit to Access (range 62) 21090 | -2/Garrison | Learned Access security intel 21097 | -2/Garrison | Garrison Relay disabled 21109 | -2/Garrison | Triggered checkpoint 21121 | -2/Garrison | Triggered checkpoint 21157 | -2/Garrison | Triggered checkpoint 21183 | -2/Garrison | Spotted B-90 Cyclops 21219 | -2/Garrison | Allies destroyed B-90 Cyclops 21242 | -2/Garrison | Lost 7 allies 21251 | -2/Garrison | Triggered checkpoint 21257 | -2/Garrison | Triggered checkpoint 21273 | -2/Garrison | Garrison Relay disabled 21329 | -2/Garrison | Garrison Relay disabled 21355 | -2/Garrison | Triggered checkpoint 21393 | -2/Garrison | Expanded RIF knowledge: Alert ID Control 21408 | -2/Garrison | Found embedded Infiltrators 21428 | -2/Garrison | Garrison Relay disabled 21431 | -2/Garrison | Garrison Relay disabled 21437 | -2/Garrison | Triggered checkpoint 21497 | -2/Garrison | Triggered checkpoint 21631 | -2/Garrison | Triggered checkpoint 21703 | -2/Garrison | Triggered checkpoint 21705 | -2/Garrison | Lost 3 allies 21741 | -2/Garrison | Lost 3 allies 21834 | -2/Garrison | Entered Access 21834 | -1/Access | Accompanied by 17 allies 21834 | -1/Access | Evolved 2 slots: Utility x2 21836 | -1/Access | Loaded intel: 75 trap records 21838 | -1/Access | Loaded intel: 4 repair station locations 21839 | -1/Access | Loaded intel: 4 recycling unit locations 21840 | -1/Access | Loaded intel: 5 garrison access locations 21842 | -1/Access | Identified exit to Surface 21889 | -1/Access | Garrison activated, responded to threat 21987 | *** | Escaped! Last Messages --------------- 21920_ >> Watcher Feeds: Established visual feed link with W-44 Eye. 21928_ >> Watcher Feeds: Feed link from W-44 Eye lost. 21931_ K-01 Serf cleans the Longscan Aggregator. 21932_ U-05 Engineer builds a Wall. 21933_ Discarded Imp. Hacking Suite. 21941_ U-05 Engineer builds a Wall. 21951_ Connecting with Terminal... >>Open(Door) Sealed Barrier opened. 21952_ The Access Shell folds into the floor. 21954_ >> Watcher Feeds: Established visual feed link with W-44 Eye. 21957_ >> Watcher Feeds: Feed link from W-44 Eye lost. 21963_ >> Watcher Feeds: Established visual feed link with W-44 Eye. 21981_ >> Watcher Feeds: Feed link from W-44 Eye lost. Map ----- +----------------------------------------------------+ | #??????????????????????????????????????????????? | | #??????????????????????????????????????????????? | | #??????????????????????????????????????????????? | | +??????????????????????????????????????????????? | | #??????????????????????????????????????????????? | | #??????????????????????????????????????????????? | | ##?????######??????????????????????????????????? | | ####### #??????????????????????????????????? | | " #??????????????????????????????????? | | #??????????????????????????????????? | | ####### #??????????????????????????????????? | | ####?????## ##??????????????????????????????????? | | ??????????# #???????????????????????????????????? | | ??????????# #???????????????????????????????????? | | ??????????# #???????????????????????????????????? | | ??????????# #???????????????????????????????????? | | ??????????# #???????????????????????????????????? | | ??????????# #???????????????????????????????????? | | ??????????# #?????###???????????????????????????? | | ??????????# ####### ##########??????????????????? | | ??????????# """T""" "??????????????????? | | ??????????# """ """ "????BB????????????? | | ??????????# Y "????BB????????????? | | ##????????# "????????????^?????? | | #????????# "" "????????????^?????? | | #????????# @" "????????????^?????? | | #????????# "????????????^?????? | | ##????????# "????BB????????????? | | ??????????# "????BB???????????? | | ??????????# k "?????????????#### | | ??????????# ####### ##########?????????????# ?? | | ??????????# ??????###??????????????????????# #??? | | ??????????# ???????????????????????????????# #??? | | ??????????# ???????????????????????????????# #??? | | ??????????# ???????????????????????????????# #??? | | ??????????# ????????????????????????????#### #??? | | ??????????# ????????????????????????????+ #??? | | ??????????? ????????????????????????????# #??? | | ???????????????????????????????????#+##+## #??? | | ???????????????????????????????????# #??? | | ???????????????????????????????????# #??? | | ???????????????????????????????????# #??? | | ???????????????????????????????????# #??? | | ???????????????????????????????????# #??? | | ???????????????????????????????????# #??? | | ???????????????????????????????????# #??? | | ???????????????????????????????????# !! #??? | | ?????????????????????????????????? !! #??? | | ????????????????????????????????? !! #??? | | ???????????????????????????????? ### ### #??? | +----------------------------------------------------+ Best States ------------- Heat Dissipation 87 Coolant Potential 100 Energy Generation 55 Energy Capacity 390 Matter Stores 300 Matter Capacity 300 Sight Range 23 Terrain Scan Range 16 Terrain Scan Density 10 ECM Strength 1 Jamming Range 16 Cloak Strength 4 Additional Mass Support 25 Base Temperature (-) 100 Corruption Block 15 Armor Coverage 450 Propulsion Shielding 90 Utility Shielding 66 Weapon Shielding 66 Melee Speed Boost 20 Evasion (%) 65 Offensive Hacking 61 Defensive Hacking 20 Relay Coupler Types 4 Relay Coupler Value 106 Authchip Count 2 Trap Extractor Capacity 6 Item Schematics ----------------- Hcp. Storage Unit | -10/Materials | Hacked ECM Suite | -10/Materials | Hacked Adv. Beam Cannon | -9/Materials | Scanalyzed Com. Wheel | -9/Materials | Scanalyzed Huge Storage Unit | -9/Materials | Extracted Sml. Matter Pod | -9/Materials | Extracted Ion Engine | -9/Materials | Extracted Imp. Hover Unit | -9/Materials | Extracted Tractor Beam | -9/Materials | Extracted Sensor Array | -9/Materials | Extracted Imp. Weapon Shielding | -8/Materials | Scanalyzed Targeting Computer | -8/Materials | Extracted Hrd. Medium Armor Plating | -8/Materials | Extracted Lgt. Armor Plating | -8/Materials | Extracted Seismic Detector | -8/Materials | Extracted Sml. Laser | -8/Materials | Extracted Imp. Light Cannon | -8/Materials | Extracted Imp. Signal Interpreter | -8/Materials | Extracted Lrg. Storage Unit | -8/Materials | Extracted Weight Redist. System | -8/Materials | Extracted Autogun | -8/Materials | Extracted Hardlight Generator | -8/Materials | Extracted Imp. Utility Shielding | -8/Materials | Scanalyzed Lgt. EM Pulse Cannon | -8/Materials | Scanalyzed Disposable Heat Sink | -8/Materials | Scanalyzed Adv. Beam Rifle | -8/Materials | Extracted Imp. Cesium-ion Thruster | -7/Factory | Scanalyzed Cloaking Device | -7/Factory | Hacked Gatling Laser | -7/Factory | Hacked Greatsword | -7/Factory | Scanalyzed Xenon Bombardment Thruster | -7/Factory | Extracted Imp. Field Recycling Unit | -7/Factory | Extracted Imp. Titanium Leg | -7/Factory | Extracted Combat Drone Bay | -7/Data Miner | Free Lgt. Regenerative Plating | -7/Data Miner | Free Biomechanical Wings | -7/Data Miner | Free Thermal Defense Suite | -7/Data Miner | Free Imp. Heavy Laser | -7/Data Miner | Free Thunder Leg | -7/Data Miner | Free Imp. Focal Shield | -7/Data Miner | Free KE Penetrator | -7/Data Miner | Free System Restoration Module | -6/Factory | Scanalyzed Energy Filter | -6/Factory | Extracted Imp. Armor Integrity Analyzer | -6/Factory | Hacked Plasma Cutter | -6/Factory | Hacked Exp. Propulsion Shielding | -4/Factory | Scanalyzed Adv. System Restoration Module | -4/Factory | Scanalyzed Imp. Trap Scanner | -4/Factory | Scanalyzed Adv. Force Field | -4/Factory | Hacked Field Propulsion Array | -4/Factory | Scanalyzed Graphene Brace | -4/Factory | Scanalyzed Hvy. Tesla Rifle | -4/Factory | Scanalyzed Hardcell Cannon | -4/Factory | Hacked Adv. Transmission Jammer | -4/Factory | Hacked Biometal Heavy Treads | -4/Factory | Hacked Imp. Fusion Compressor | -4/Factory | Hacked Adv. Recalibrator | -4/Factory | Hacked Mic. Antimatter Reactor | -4/Factory | Hacked Adv. Cryofiber Web | -4/Factory | Hacked Adv. Heavy Siege Treads | -4/Factory | Hacked Lgt. Antimatter Reactor | -4/Armory | Hacked Com. Linear Accelerator | -3/Research | Hacked Adv. EM Shield | -3/Research | Scanalyzed Com. Particle Reactor | -3/Research | Scanalyzed Spectral Analyzer | -3/Research | Scanalyzed Adv. Cloaking Device | -3/Research | Hacked Imp. Q-thruster | -2/Research | Scanalyzed Enh. Nova Cannon | -2/Research | Hacked Enh. Hardcell Cannon | -2/Research | Hacked Adv. Quantum Shading Machine | -2/Research | Hacked Cld. Q-thruster | -2/Research | Hacked Robot Schematics ------------------ A-15 Conveyor | -7/Data Miner | Free O-24 Administrator | -7/Data Miner | Free E-15 Imp | -7/Data Miner | Free S-27 Virus | -7/Data Miner | Free A-02 Transporter | -4/Factory | Hacked Y-64 Sentinel | -4/Factory | Hacked B-60 Warrior | -4/Factory | Hacked K-01 Serf | -2/Research | Hacked H-77 Assassin | -2/Research | Hacked Fabricated ------------ Biomechanical Wings | x1 | -6/Factory | Authchip Greatsword | x2 | -6/Factory Plasma Cutter | x2 | -6/Factory Adv. System Restoration Module | x2 | -4/Factory Lrg. Storage Unit | x1 | -4/Armory | Authchip Field Propulsion Array | x1 | -4/Armory | Authchip ECM Suite | x2 | -2/Research | Authchip Exp. Propulsion Shielding | x1 | -2/Research Adv. Quantum Shading Machine | x1 | -2/Research Repaired ---------- Med. Laser | 15% | -10/Materials Disposable Heat Sink | 28% | -10/Materials Cooling System | 70% | -9/Materials Adv. Beam Cannon | 63% | -9/Materials | Broken Imp. Utility Shielding | 69% | -6/Factory Hvy. Rocket Launcher | 22% | -6/Factory Phasing Sabre | 16% | -5/Factory Phasing Sabre | 99% | -5/Factory | Broken Plasma Sword | 49% | -4/Factory Centrium Greatsword | 34% | -3/Research Mic. Antimatter Reactor | 37% | -3/Research Mic. Antimatter Reactor | 52% | -3/Research Adv. Datajack | 50% | -3/Research Exp. Propulsion Shielding | 76% | -3/Research Exp. Propulsion Shielding | 37% | -2/Research Centrium Greatsword | 40% | -2/Research Studied --------- Wheel | -9/Materials | Hacked Com. Wheel | -9/Materials | Hacked Mni. Grenade Launcher | -9/Materials | Hacked Lgt. EM Pulse Cannon | -8/Materials | Hacked EM Pulse Gun | -8/Materials | Hacked Beam Rifle | -8/Materials | Hacked Particle Gun | -8/Materials | Hacked Lgt. Ion Engine | -7/Factory | Hacked Mic. Nuclear Core | -7/Factory | Hacked Greatsword | -6/Factory | Hacked Hvy. Rocket Launcher | -6/Factory | Hacked Imp. Datajack | -6/Factory | Hacked VTOL Module | -5/Factory | Hacked Nuclear Pulse Array | -5/Factory | Hacked Field Propulsion Drive | -4/Factory | Hacked Field Propulsion Array | -4/Factory | Hacked Mic. Antimatter Reactor | -4/Factory | Hacked Imp. Fusion Compressor | -3/Research | Hacked Alien Tech Used ----------------- Integrated Reactor Core Regenerator Achievements -------------- None Challenges ------------ None Game ------ Seed TitaniumSkeletonFlakker Manual? 0 Play Time 06:18:12 Cumulative 934.4 hours Start 2026.02.20 @ 16:55:06 End 2026.02.21 @ 15:03:32 Sessions 3 Manual Loads 0 Difficulty Rogue Special Mode None Game No. 359 Rogue 359 Adventurer 0 Explorer 0 Win Type 0 Total 97 Types 46/6/17/9/8/1/1/3/1/5 Lore% 98 Gallery% 88 Achievement% 86 Wizard Run 0 Options --------- Layout 1 ASCII 0 Keyboard 0 Movement Numpad Keybinds 0 Fullscreen 1 Font 24/Smallcaps Map View 50x35 Zoom Use 0% Tactical HUD 1 Map Filters NONE Filters NONE Steam 1 RUN: b49959bb-4dbe-415c-92c0-127f8de870e0